Workbook

Sheet INGRESO DE DATOS
O2: 24 years | P2: FALSE
O4: Descuento 24 años (por edad)
O5: age | P5: Discount (%) | Q5: Parameter | S5: Type | T5: Nuevo Negocio | V5: Región | W5: 2
O6: 24 | P6: 35 | Q6: =1-P6/100 -> 0.65 | T6: Renovación | W6: 3
O7: 25 | P7: 30 | Q7: =1-P7/100 -> 0.7 | T7: Renovación: Pólizas mayo - diciembre de 2024 | W7: 4
O8: 26 | P8: 25 | Q8: 0.75 | W8: 5
O9: 27 | P9: 20 | Q9: 0.8 | W9: 6
O10: 28 | P10: 15 | Q10: 0.85 | W10: 8
O11: 29 | P11: 6 | Q11: 0.94 | W11: 9
O12: All ages | P12: 0 | Q12: 1 | W12: Guatemala
S13: Type selected | T13: 1 | V13: Selección | W13: 8
V14: Región | W14: =IF(W13=1,"2",IF(W13=2,3,IF(W13=3,4,IF(W13=4,5,IF(W13=4,5,IF(W13=5,6,IF(W13=6,8,IF(W13=7,9,IF(W13=8,"Guatemala"))))))))) -> Guatemala
O19: Descuento de 24 años: | P19: =IF(P2,_xlfn.SWITCH(C40,O6,Q6,O7,Q7,O8,Q8,O9,Q9,O10,Q10,O11,Q11,Q12),Q12) -> 1 | R19: IVA: 12% | S19: =12/100 -> 0.12 | T19: =S19+1 -> 1.12
O24: Descuento por variante de coaseguro | P24: N/A
O26: Renovación: Pólizas mayo - diciembre de 2024
P27: Complete | Q27: Premium | R27: Secure | S27: Essential | T27: Classic
O28: 0 | P28: 0 | Q28: 0 | R28: 0 | S28: 0 | T28: 0.05
O30: Descuento si es nuevo negocio (ENTRADA MANUAL)
O32: New business discount
P33: Complete | Q33: Premium | R33: Secure | S33: Essential | T33: Classic
O34: 0 | P34: 0 | Q34: 0 | R34: 0 | S34: 0 | T34: 0.15
A36: Nombre del Asegurado principal: | C36: John Doe
O37: Descuento combinado 24 años + Nuevo Negocio o Roneovaciones
A38: Número de adultos en la póliza: | C38: 2 | D38: Número de hijos en la póliza: | F38: 2
A40: Edad del titular: | C40: 32 | E40: Edad de cónyuge: | F40: 46 | O40: New business discount
P41: Complete | Q41: Premium | R41: Secure | S41: Essential | T41: Classic
H42: =IF(T13=1,"Essential y Classic Care Solamente","") -> Essential y Classic Care Solamente | O42: =1*$P$19 -> 1 | P42: =IF($T$13=3,(1-P28)*$P$19,IF($T$13=1,IF($W$14="PERU2020", (1-O51)*$P$19,(1-P34)*$P$19),1*$P$19)) -> 1 | Q42: =IF($T$13=3,(1-Q28)*$P$19,IF($T$13=1,IF($W$14="PERU2020", (1-P51)*$P$19,(1-Q34)*$P$19),1*$P$19)) -> 1 | R42: 1 | S42: 1 | T42: 0.85
A44: Nombre de la Agencia : | C44: Agencia
O48: DISCOUNT PERU 2020
O50: EXCLUSIVE CARE
O51: 0.51
O53: PRIVILEGE CARE
O54: 0.51
O56: ADVANTAGE CARE
O57: 0.47
O59: SECURE CARE
O60: 0.54
O62: ESSENTIAL CARE
O63: 0.54

Sheet Bupa Complete Care
N1: RESUMEN DE BENEFICIOS | V1: RESUMEN DE BENEFICIOS
G2: TRUE | H2: FALSE
A5: Cotización de Seguro Médico Internacional Bupa Complete Care Tarifas en US$ | Validas: 1 de enero de 2025 | L5: REGIÓN
L7: =IF('INGRESO DE DATOS'!W14="Guatemala","GUATEMALA",'INGRESO DE DATOS'!W14) -> GUATEMALA
A13: Nombre del asegurado principal: | G13: =+'INGRESO DE DATOS'!$C$36 -> John Doe
A15: Broker/Agente | G15: =+'INGRESO DE DATOS'!$C$44 -> Agencia
B17: Número de Adultos en la Póliza | G17: =+'INGRESO DE DATOS'!$C$38 -> 2 | J17: Dependientes (menores de 24 años) | L17: =+'INGRESO DE DATOS'!$F$38 -> 2
J18: =IF('INGRESO DE DATOS'!$P$2=TRUE, "Cotización para dependiente de 24 años","") -> 
B19: Edad del Titular | G19: =+'INGRESO DE DATOS'!$C$40 -> 32 | J19: Edad del Cónyuge | L19: =+'INGRESO DE DATOS'!$F$40 -> 46
J21: Fecha de Cotización: | K21: =NOW() -> 2025-01-27T13:32:07.300
F29: DEDUCIBLES | G29: PLAN 1 | H29: PLAN 2 | I29: PLAN 3 | J29: PLAN 4 | K29: PLAN 5 | L29: PLAN 6
F30: Dentro del pais de residencia | G30: n/a | H30: 1000 | I30: 2000 | J30: 5000 | K30: 10000 | L30: 20000
F31: Fuera del pais de residencia | G31: n/a | H31: 2000 | I31: 3000 | J31: 5000 | K31: 10000 | L31: 20000
F34: TARIFAS ANUALES
F35: Prima de Titular | G35: n/a | H35: =VLOOKUP($G$19,Tablas!$A$10:$H$33,4,TRUE) -> 16601 | I35: =VLOOKUP($G$19,Tablas!$A$10:$H$33,5,TRUE) -> 12344 | J35: =VLOOKUP($G$19,Tablas!$A$10:$H$33,6,TRUE) -> 9004 | K35: =VLOOKUP($G$19,Tablas!$A$10:$H$33,7,TRUE) -> 6703 | L35: =VLOOKUP($G$19,Tablas!$A$10:$H$33,8,TRUE) -> 5127
F36: Prima de Cónyuge | G36: n/a | H36: =IF($G$17=1,0,(VLOOKUP($L$19,Tablas!$A$10:$H$33,4,TRUE))) -> 24069 | I36: =IF($G$17=1,0,(VLOOKUP($L$19,Tablas!$A$10:$H$33,5,TRUE))) -> 16911 | J36: =IF($G$17=1,0,(VLOOKUP($L$19,Tablas!$A$10:$H$33,6,TRUE))) -> 12536 | K36: =IF($G$17=1,0,(VLOOKUP($L$19,Tablas!$A$10:$H$33,7,TRUE))) -> 9260 | L36: =IF($G$17=1,0,(VLOOKUP($L$19,Tablas!$A$10:$H$33,8,TRUE))) -> 7093
F37: Primas Hijos | G37: n/a | H37: =IF($L$17=0,0,(VLOOKUP($L$17,Tablas!$A$34:$H$36,4,TRUE))) -> 8406 | I37: =IF($L$17=0,0,(VLOOKUP($L$17,Tablas!$A$34:$H$36,5,TRUE))) -> 6124 | J37: =IF($L$17=0,0,(VLOOKUP($L$17,Tablas!$A$34:$H$36,6,TRUE))) -> 4658 | K37: =IF($L$17=0,0,(VLOOKUP($L$17,Tablas!$A$34:$H$36,7,TRUE))) -> 3843 | L37: =IF($L$17=0,0,(VLOOKUP($L$17,Tablas!$A$34:$H$36,8,TRUE))) -> 2862
F38: Rider: Complicación de Maternidad | G38: n/a | H38: =+IF($G$2=FALSE,0,Tablas!D37) -> 0 | I38: =+IF($G$2=FALSE,0,Tablas!E37) -> 0 | J38: =+IF($G$2=FALSE,0,Tablas!F37) -> 225 | K38: =+IF($G$2=FALSE,0,Tablas!G37) -> 225 | L38: =+IF($G$2=FALSE,0,Tablas!H37) -> 225
F39: TOTAL PRIMA NETA | G39: n/a | H39: =SUM(H35:H38) -> 49076 | I39: =SUM(I35:I38) -> 35379 | J39: =SUM(J35:J38) -> 26423 | K39: =SUM(K35:K38) -> 20031 | L39: =SUM(L35:L38) -> 15307
F40: Costo Administrativo Anual | G40: n/a | H40: 75 | I40: 75 | J40: 75 | K40: 75 | L40: 75
F41: IVA (12%) | G41: n/a | H41: =SUM(H39:H40)*'INGRESO DE DATOS'!$S$19 -> 5898.12 | I41: =SUM(I39:I40)*'INGRESO DE DATOS'!$S$19 -> 4254.48 | J41: =SUM(J39:J40)*'INGRESO DE DATOS'!$S$19 -> 3179.76 | K41: =SUM(K39:K40)*'INGRESO DE DATOS'!$S$19 -> 2412.72 | L41: =SUM(L39:L40)*'INGRESO DE DATOS'!$S$19 -> 1845.84
F42: GRAN TOTAL: | G42: n/a | H42: =SUM(H39:H41) -> 55049.12 | I42: =SUM(I39:I41) -> 39708.48 | J42: 29677.76 | K42: 22518.72 | L42: 17227.84
F46: TARIFAS SEMESTRALES
F47: Prima de Titular | G47: n/a | H47: =VLOOKUP($G$19,Tablas!$A$45:$H$68,4,TRUE) -> 8798.53 | I47: =VLOOKUP($G$19,Tablas!$A$45:$H$68,5,TRUE) -> 6542.32 | J47: =VLOOKUP($G$19,Tablas!$A$45:$H$68,6,TRUE) -> 4772.12 | K47: =VLOOKUP($G$19,Tablas!$A$45:$H$68,7,TRUE) -> 3552.59 | L47: =VLOOKUP($G$19,Tablas!$A$45:$H$68,8,TRUE) -> 2717.31
F48: Prima de Cónyuge | G48: n/a | H48: =IF($G$17=1,0,(VLOOKUP($L$19,Tablas!$A$45:$H$68,4,TRUE))) -> 12756.57 | I48: =IF($G$17=1,0,(VLOOKUP($L$19,Tablas!$A$45:$H$68,5,TRUE))) -> 8962.83 | J48: =IF($G$17=1,0,(VLOOKUP($L$19,Tablas!$A$45:$H$68,6,TRUE))) -> 6644.08 | K48: =IF($G$17=1,0,(VLOOKUP($L$19,Tablas!$A$45:$H$68,7,TRUE))) -> 4907.8 | L48: =IF($G$17=1,0,(VLOOKUP($L$19,Tablas!$A$45:$H$68,8,TRUE))) -> 3759.29
F49: Primas Hijos | G49: n/a | H49: =IF($L$17=0,0,(VLOOKUP($L$17,Tablas!$A$69:$H$71,4,TRUE))) -> 4455.18 | I49: =IF($L$17=0,0,(VLOOKUP($L$17,Tablas!$A$69:$H$71,5,TRUE))) -> 3245.72 | J49: =IF($L$17=0,0,(VLOOKUP($L$17,Tablas!$A$69:$H$71,6,TRUE))) -> 2468.74 | K49: =IF($L$17=0,0,(VLOOKUP($L$17,Tablas!$A$69:$H$71,7,TRUE))) -> 2036.79 | L49: =IF($L$17=0,0,(VLOOKUP($L$17,Tablas!$A$69:$H$71,8,TRUE))) -> 1516.86
F50: Rider: Complicación de Maternidad | G50: n/a | H50: =+IF($G$2=FALSE,0,Tablas!D72) -> 0 | I50: =+IF($G$2=FALSE,0,Tablas!E72) -> 0 | J50: =+IF($G$2=FALSE,0,Tablas!F72) -> 119.25 | K50: =+IF($G$2=FALSE,0,Tablas!G72) -> 119.25 | L50: =+IF($G$2=FALSE,0,Tablas!H72) -> 119.25
F51: TOTAL PRIMA NETA | G51: n/a | H51: =SUM(H47:H50) -> 26010.28 | I51: =SUM(I47:I50) -> 18750.87 | J51: =SUM(J47:J50) -> 14004.19 | K51: =SUM(K47:K50) -> 10616.43 | L51: =SUM(L47:L50) -> 8112.71
F52: Costo Administrativo Anual | G52: n/a | H52: 75 | I52: 75 | J52: 75 | K52: 75 | L52: 75
F53: IVA (12%) | G53: n/a | H53: =SUM(H51:H52)*'INGRESO DE DATOS'!$S$19 -> 3130.2336 | I53: =SUM(I51:I52)*'INGRESO DE DATOS'!$S$19 -> 2259.1044 | J53: =SUM(J51:J52)*'INGRESO DE DATOS'!$S$19 -> 1689.5028 | K53: =SUM(K51:K52)*'INGRESO DE DATOS'!$S$19 -> 1282.9716 | L53: =SUM(L51:L52)*'INGRESO DE DATOS'!$S$19 -> 982.5252
F54: TOTAL (1ra Cuota) | G54: n/a | H54: =SUM(H51:H53) -> 29215.5136 | I54: =SUM(I51:I53) -> 21084.9744 | J54: 15768.6928 | K54: 11974.4016 | L54: 9170.2352
F55: TOTAL (2da Cuota) | G55: n/a | H55: =H54-H52*'INGRESO DE DATOS'!$T$19 -> 29131.5136 | I55: =I54-I52*'INGRESO DE DATOS'!$T$19 -> 21000.9744 | J55: =J54-J52*'INGRESO DE DATOS'!$T$19 -> 15684.6928 | K55: =K54-K52*'INGRESO DE DATOS'!$T$19 -> 11890.4016 | L55: =L54-L52*'INGRESO DE DATOS'!$T$19 -> 9086.2352
F56: GRAN TOTAL | G56: n/a | H56: =SUM(H54:H55) -> 58347.0272 | I56: =SUM(I54:I55) -> 42085.9488 | J56: 31453.3856 | K56: 23864.8032 | L56: 18256.4704
F59: TARIFAS TRIMESTRALES
F60: Prima de Titular | G60: n/a | H60: =VLOOKUP($G$19,Tablas!$A$79:$H$102,4,TRUE) -> 4565.275 | I60: =VLOOKUP($G$19,Tablas!$A$79:$H$102,5,TRUE) -> 3394.6 | J60: =VLOOKUP($G$19,Tablas!$A$79:$H$102,6,TRUE) -> 2476.1 | K60: =VLOOKUP($G$19,Tablas!$A$79:$H$102,7,TRUE) -> 1843.325 | L60: =VLOOKUP($G$19,Tablas!$A$79:$H$102,8,TRUE) -> 1409.925
F61: Prima de Cónyuge | G61: n/a | H61: =IF($G$17=1,0,(VLOOKUP($L$19,Tablas!$A$79:$H$102,4,TRUE))) -> 6618.975 | I61: =IF($G$17=1,0,(VLOOKUP($L$19,Tablas!$A$79:$H$102,5,TRUE))) -> 4650.525 | J61: =IF($G$17=1,0,(VLOOKUP($L$19,Tablas!$A$79:$H$102,6,TRUE))) -> 3447.4 | K61: =IF($G$17=1,0,(VLOOKUP($L$19,Tablas!$A$79:$H$102,7,TRUE))) -> 2546.5 | L61: =IF($G$17=1,0,(VLOOKUP($L$19,Tablas!$A$79:$H$102,8,TRUE))) -> 1950.575
F62: Primas Hijos | G62: n/a | H62: =IF($L$17=0,0,(VLOOKUP($L$17,Tablas!$A$103:$H$105,4,TRUE))) -> 2311.65 | I62: =IF($L$17=0,0,(VLOOKUP($L$17,Tablas!$A$103:$H$105,5,TRUE))) -> 1684.1 | J62: =IF($L$17=0,0,(VLOOKUP($L$17,Tablas!$A$103:$H$105,6,TRUE))) -> 1280.95 | K62: =IF($L$17=0,0,(VLOOKUP($L$17,Tablas!$A$103:$H$105,7,TRUE))) -> 1056.825 | L62: =IF($L$17=0,0,(VLOOKUP($L$17,Tablas!$A$103:$H$105,8,TRUE))) -> 787.05
F63: Rider: Complicación de Maternidad | G63: n/a | H63: =+IF($G$2=FALSE,0,Tablas!D106) -> 0 | I63: =+IF($G$2=FALSE,0,Tablas!E106) -> 0 | J63: =+IF($G$2=FALSE,0,Tablas!F106) -> 61.875 | K63: =+IF($G$2=FALSE,0,Tablas!G106) -> 61.875 | L63: =+IF($G$2=FALSE,0,Tablas!H106) -> 61.875
F64: TOTAL PRIMA NETA | G64: n/a | H64: =SUM(H60:H63) -> 13495.9 | I64: =SUM(I60:I63) -> 9729.225 | J64: =SUM(J60:J63) -> 7266.325 | K64: =SUM(K60:K63) -> 5508.525 | L64: =SUM(L60:L63) -> 4209.425
F65: Costo Administrativo Anual | G65: n/a | H65: 75 | I65: 75 | J65: 75 | K65: 75 | L65: 75
F66: IVA (12%) | G66: n/a | H66: =SUM(H64:H65)*'INGRESO DE DATOS'!$S$19 -> 1628.508 | I66: =SUM(I64:I65)*'INGRESO DE DATOS'!$S$19 -> 1176.507 | J66: =SUM(J64:J65)*'INGRESO DE DATOS'!$S$19 -> 880.959 | K66: =SUM(K64:K65)*'INGRESO DE DATOS'!$S$19 -> 670.023 | L66: =SUM(L64:L65)*'INGRESO DE DATOS'!$S$19 -> 514.131
F67: TOTAL (1ra Cuota) | G67: n/a | H67: =SUM(H64:H66) -> 15199.408 | I67: =SUM(I64:I66) -> 10980.732 | J67: 8222.284 | K67: 6253.548 | L67: 4798.556
F68: TOTAL (2da a 4ta Cuota) | G68: n/a | H68: =H67-H65*'INGRESO DE DATOS'!$T$19 -> 15115.408 | I68: =I67-I65*'INGRESO DE DATOS'!$T$19 -> 10896.732 | J68: =J67-J65*'INGRESO DE DATOS'!$T$19 -> 8138.284 | K68: =K67-K65*'INGRESO DE DATOS'!$T$19 -> 6169.548 | L68: =L67-L65*'INGRESO DE DATOS'!$T$19 -> 4714.556
F69: GRAN TOTAL | G69: n/a | H69: =H67+H68*3 -> 60545.632 | I69: =I67+I68*3 -> 43670.928 | J69: 32637.136 | K69: 24762.192 | L69: 18942.224
F72: Este presupuesto solamente tiene carácter informativo y en ningún momento expresa compromiso legal para suministrarle cobertura de seguro. La emisión de una póliza de seguro Bupa está sujeta a todas las evaluaciones de riesgo por parte de Bupa y a la recepción de todos los pagos de prima requeridos.

Sheet Advantage (LA) (hidden)
A10: Cotización de Seguro Médico Internacional - Bupa ADVANTAGE Care (cobertura solo Latinoamérica)
A12: Bupa Advantage Care (cobertura solo en Latinoamérica) | H12: =+'INGRESO DE DATOS'!$C$36 -> John Doe
A13: Cobertura Máxima anual | C13: US $ 3,500,000
A14: Cobertura Geografica | C14: Limitada a Latinoamérica excluyendo México | H14: =+'INGRESO DE DATOS'!$C$44 -> Agencia
A15: Condiciones médicas cubiertas | C15: Todas las condiciones médicas
A16: Redes de proveedores | C16: Red de Proveedores "Bupa Advantage" | J16: =+'INGRESO DE DATOS'!$C$38 -> 2 | M16: =+'INGRESO DE DATOS'!$C$40 -> 32
A17: Opciones fuera de la Red | C17: NO, solo en casos de emergencia | F17: FECHA DE COTIZACION :
A18: Requiere preautorización | C18: SI, 30% de penalización por omitir prenotificación | F18: =NOW() -> 2025-01-27T13:32:07.300 | J18: =+'INGRESO DE DATOS'!$F$38 -> 2 | M18: =+'INGRESO DE DATOS'!$F$40 -> 46
A20: Número máximo de días de hospitalización | C20: Ilimitado | I20: TRUE | K20: COMPLICACIONES DE MATERNIDAD
A21: Habitación y alimentación | C21: 100% dentro de Red Bupa
C22: "UCR" para L.A. en emergencias fuera de Red Bupa | I22: TRUE | K22: TRASPLANTE DE ORGANOS
A23: Cuidados Intensivos | C23: 100% dentro de Red Bupa
C24: "UCR" para L.A. en emergencias fuera de Red Bupa
A25: Cobertura de Maternidad | C25: $5,000 (Excepto planes 4,5, y 6) | F25: Deducibles | H25: PLAN 1 | I25: PLAN 2 | J25: PLAN 3 | K25: PLAN 4 | L25: PLAN 5 | M25: PLAN 6
A26: Cobertura Provisional de Recién Nacido | C26: $30,000 por los primeros 90 días | F26: Dentro del pais de residencia | H26: n/a | I26: 1000 | J26: 2000 | K26: 5000 | L26: 10000 | M26: 20000
A27: Cuidado del Recién Nacido saludable | C27: Ya incluída dentro del beneficio de Maternidad | F27: Fuera del pais de residencia | H27: n/a | I27: 2000 | J27: 3000 | K27: 5000 | L27: 10000 | M27: 20000
A28: Cobertura de Complicaciones de Maternidad | C28: Disponible a través de cobertura opcional adicional
A29: Trasplante de Organos | C29: $1,000,000 de por vida, por diagnóstico
A30: Condiciones congénitas y hereditarias | C30: <18 años $300,000 de por vida; >=18 al 100% | F30: Tarifas Anuales
A31: Coberturas opcionales (Riders) | C31: Complicaciones de Maternidad por $500,000 | F31: Prima de Titular : | H31: n/a | I31: =VLOOKUP($M$16,Tablas!#REF!,4,TRUE) ->  | J31: =VLOOKUP($M$16,Tablas!#REF!,5,TRUE) ->  | K31: =VLOOKUP($M$16,Tablas!#REF!,6,TRUE) ->  | L31: =VLOOKUP($M$16,Tablas!#REF!,7,TRUE) ->  | M31: =VLOOKUP($M$16,Tablas!#REF!,8,TRUE) -> 
C32: Trasplante de órganos por $ 300,000 adicionales | F32: Prima de Cónyuge | H32: n/a | I32: =IF($J$16=1,0,(VLOOKUP($M$18,Tablas!#REF!,4,TRUE))) ->  | J32: =IF($J$16=1,0,(VLOOKUP($M$18,Tablas!#REF!,5,TRUE))) ->  | K32: =IF($J$16=1,0,(VLOOKUP($M$18,Tablas!#REF!,6,TRUE))) ->  | L32: =IF($J$16=1,0,(VLOOKUP($M$18,Tablas!#REF!,7,TRUE))) ->  | M32: =IF($J$16=1,0,(VLOOKUP($M$18,Tablas!#REF!,8,TRUE))) -> 
A33: Acompañamiento de menores hospitalizados | C33: $300 por día | F33: Primas Hijos : | H33: n/a | I33: =IF($J$18=0,0,(VLOOKUP($J$18,Tablas!#REF!,4,TRUE))) ->  | J33: =IF($J$18=0,0,(VLOOKUP($J$18,Tablas!#REF!,5,TRUE))) ->  | K33: =IF($J$18=0,0,(VLOOKUP($J$18,Tablas!#REF!,6,TRUE))) ->  | L33: =IF($J$18=0,0,(VLOOKUP($J$18,Tablas!#REF!,7,TRUE))) ->  | M33: =IF($J$18=0,0,(VLOOKUP($J$18,Tablas!#REF!,8,TRUE))) -> 
A34: Ambulancia aérea | C34: $100,000 por año y ticket aéreo de retorno | F34: Prima Rider Complic. Maternidad | H34: n/a | I34: =+IF($I$20=FALSE,0,Tablas!#REF!) ->  | J34: =+IF($I$20=FALSE,0,Tablas!#REF!) ->  | K34: =+IF($I$20=FALSE,0,Tablas!#REF!) ->  | L34: =+IF($I$20=FALSE,0,Tablas!#REF!) ->  | M34: =+IF($I$20=FALSE,0,Tablas!#REF!) -> 
A35: Repatriación restos mortales | C35: 1 | F35: Prima Rider Trasplante Organos | H35: n/a | I35: =IF($I$22=FALSE,0,Tablas!#REF!) ->  | J35: =IF($I$22=FALSE,0,Tablas!#REF!) ->  | K35: =IF($I$22=FALSE,0,Tablas!#REF!) ->  | L35: =IF($I$22=FALSE,0,Tablas!#REF!) ->  | M35: =IF($I$22=FALSE,0,Tablas!#REF!) -> 
A36: Medicamentos por receta | C36: $6,000 por Asegurado, por año póliza | F36: TOTAL PRIMA NETA : | H36: n/a | I36: =SUM(I31:I35) -> 
A37: Almacenamiento de sangre de cordon umbilical | C37: $500 (Excepto planes 4,5, y 6) | F37: Costo Administrativo Anual : | H37: n/a | I37: 75 | J37: 75 | K37: 75 | L37: 75 | M37: 75
F38: GRAN TOTAL : | H38: n/a | I38: =SUM(I36:I37) ->  | J38: =SUM(J36:J37) ->  | K38: =SUM(K36:K37) ->  | L38: =SUM(L36:L37) ->  | M38: =SUM(M36:M37) -> 
A39: Atención médica en el hogar | C39: 100% de usual/acostumbrado y razonable
A40: Rehabilitación | C40: 100% de usual/acostumbrado y razonable | F40: Tarifas Semestrales
A41: Residencia y cuidados paliativos | C41: 100% de usual/acostumbrado y razonable | F41: Prima de Titular : | H41: n/a | I41: =VLOOKUP($M$16,Tablas!#REF!,4,TRUE) ->  | J41: =VLOOKUP($M$16,Tablas!#REF!,5,TRUE) ->  | K41: =VLOOKUP($M$16,Tablas!#REF!,6,TRUE) ->  | L41: =VLOOKUP($M$16,Tablas!#REF!,7,TRUE) ->  | M41: =VLOOKUP($M$16,Tablas!#REF!,8,TRUE) -> 
A42: Cobertura de actividades peligrosas | C42: 1 | F42: Prima de Cónyuge | H42: n/a | I42: =IF($J$16=1,0,(VLOOKUP($M$18,Tablas!#REF!,4,TRUE))) ->  | J42: =IF($J$16=1,0,(VLOOKUP($M$18,Tablas!#REF!,5,TRUE))) ->  | K42: =IF($J$16=1,0,(VLOOKUP($M$18,Tablas!#REF!,6,TRUE))) ->  | L42: =IF($J$16=1,0,(VLOOKUP($M$18,Tablas!#REF!,7,TRUE))) ->  | M42: =IF($J$16=1,0,(VLOOKUP($M$18,Tablas!#REF!,8,TRUE))) -> 
A43: Chequeos generales de rutina | C43: Hasta US$150 por año póliza.Sin deducible | F43: Primas Hijos : | H43: n/a | I43: =IF($J$18=0,0,(VLOOKUP($J$18,Tablas!#REF!,4,TRUE))) ->  | J43: =IF($J$18=0,0,(VLOOKUP($J$18,Tablas!#REF!,5,TRUE))) ->  | K43: =IF($J$18=0,0,(VLOOKUP($J$18,Tablas!#REF!,6,TRUE))) ->  | L43: =IF($J$18=0,0,(VLOOKUP($J$18,Tablas!#REF!,7,TRUE))) ->  | M43: =IF($J$18=0,0,(VLOOKUP($J$18,Tablas!#REF!,8,TRUE))) -> 
A44: Cobertura de VIH, SIDA, CAS | C44: Solo como efecto de transfusión de sangre | F44: Prima Rider Complic. Maternidad | H44: n/a | I44: =+IF($I$20=FALSE,0,Tablas!#REF!) ->  | J44: =+IF($I$20=FALSE,0,Tablas!#REF!) ->  | K44: =+IF($I$20=FALSE,0,Tablas!#REF!) ->  | L44: =+IF($I$20=FALSE,0,Tablas!#REF!) ->  | M44: =+IF($I$20=FALSE,0,Tablas!#REF!) -> 
A45: Cobertura de brazos y piernas artificiales | C45: $30,000 por año y hasta $120,000 de por vida | F45: Prima Rider Trasplante Organos | H45: n/a | I45: =IF($I$22=FALSE,0,Tablas!#REF!) ->  | J45: =IF($I$22=FALSE,0,Tablas!#REF!) ->  | K45: =IF($I$22=FALSE,0,Tablas!#REF!) ->  | L45: =IF($I$22=FALSE,0,Tablas!#REF!) ->  | M45: =IF($I$22=FALSE,0,Tablas!#REF!) -> 
A46: Cobertura extendida para dependientes en caso de muerte de asegurado principal | C46: 2 años sin costo | F46: TOTAL PRIMA NETA : | H46: n/a | I46: =SUM(I41:I45) -> 
F47: Costo Administrativo Anual : | H47: n/a | I47: 75 | J47: 75 | K47: 75 | L47: 75 | M47: 75
F48: GRAN TOTAL (1ra Cuota) : | H48: n/a | I48: =SUM(I46:I47) ->  | J48: =SUM(J46:J47) ->  | K48: =SUM(K46:K47) ->  | L48: =SUM(L46:L47) ->  | M48: =SUM(M46:M47) -> 
F49: GRAN TOTAL (2da Cuota) : | H49: n/a | I49: =I46 ->  | J49: =J46 -> 
F50: Tarifas en US $ - Válidas desde 01 Ene 2013

Sheet Bupa Premium Care
N1: RESUMEN DE BENEFICIOS | V1: RESUMEN DE BENEFICIOS
G2: TRUE | H2: TRUE
G3: TRUE
A5: Cotización de Seguro Médico Internacional Bupa Premium Care Tarifas en US$ | Validas: 1 de enero de 2025 | L5: REGIÓN
L7: =IF('INGRESO DE DATOS'!W14="Guatemala","GUATEMALA",'INGRESO DE DATOS'!W14) -> GUATEMALA
A13: Nombre del asegurado principal: | G13: =+'INGRESO DE DATOS'!$C$36 -> John Doe
A15: Broker/Agente | G15: =+'INGRESO DE DATOS'!$C$44 -> Agencia
B17: Número de Adultos en la Póliza | G17: =+'INGRESO DE DATOS'!$C$38 -> 2 | J17: Dependientes (menores de 24 años) | L17: =+'INGRESO DE DATOS'!$F$38 -> 2
J18: =IF('INGRESO DE DATOS'!$P$2=TRUE, "Cotización para dependiente de 24 años","") -> 
B19: Edad del Titular | G19: =+'INGRESO DE DATOS'!$C$40 -> 32 | J19: Edad del Cónyuge | L19: =+'INGRESO DE DATOS'!$F$40 -> 46
J23: Fecha de Cotización: | K23: =NOW() -> 2025-01-27T13:32:07.300
F31: DEDUCIBLES | G31: PLAN 1 | H31: PLAN 2 | I31: PLAN 3 | J31: PLAN 4 | K31: PLAN 5 | L31: PLAN 6
F32: Dentro del pais de residencia | G32: n/a | H32: 1000 | I32: 2000 | J32: 5000 | K32: 10000 | L32: 20000
F33: Fuera del pais de residencia | G33: n/a | H33: 2000 | I33: 3000 | J33: 5000 | K33: 10000 | L33: 20000
F36: TARIFAS ANUALES
F37: Prima de Titular | G37: n/a | H37: =VLOOKUP($G$19,Tablas!$A$677:$H$739,4,TRUE) -> 9951 | I37: =VLOOKUP($G$19,Tablas!$A$677:$H$739,5,TRUE) -> 7620 | J37: =VLOOKUP($G$19,Tablas!$A$677:$H$739,6,TRUE) -> 5576 | K37: =VLOOKUP($G$19,Tablas!$A$677:$H$739,7,TRUE) -> 4155 | L37: =VLOOKUP($G$19,Tablas!$A$677:$H$739,8,TRUE) -> 3215
F38: Prima de Cónyuge | G38: n/a | H38: =IF($G$17=1,0,(VLOOKUP($L$19,Tablas!$A$677:$H$739,4,TRUE))) -> 14038 | I38: =IF($G$17=1,0,(VLOOKUP($L$19,Tablas!$A$677:$H$739,5,TRUE))) -> 11220 | J38: =IF($G$17=1,0,(VLOOKUP($L$19,Tablas!$A$677:$H$739,6,TRUE))) -> 8666 | K38: =IF($G$17=1,0,(VLOOKUP($L$19,Tablas!$A$677:$H$739,7,TRUE))) -> 6428 | L38: =IF($G$17=1,0,(VLOOKUP($L$19,Tablas!$A$677:$H$739,8,TRUE))) -> 4423
F39: Primas Hijos | G39: n/a | H39: =IF($L$17=0,0,(VLOOKUP($L$17,Tablas!$A$740:$H$742,4,TRUE))) -> 5931 | I39: =IF($L$17=0,0,(VLOOKUP($L$17,Tablas!$A$740:$H$742,5,TRUE))) -> 4096 | J39: =IF($L$17=0,0,(VLOOKUP($L$17,Tablas!$A$740:$H$742,6,TRUE))) -> 3029 | K39: =IF($L$17=0,0,(VLOOKUP($L$17,Tablas!$A$740:$H$742,7,TRUE))) -> 2615 | L39: =IF($L$17=0,0,(VLOOKUP($L$17,Tablas!$A$740:$H$742,8,TRUE))) -> 1743
F40: Rider: Complicación de Maternidad | G40: n/a | H40: =+IF($G$2=FALSE,0,Tablas!D743) -> 225 | I40: =+IF($G$2=FALSE,0,Tablas!E743) -> 225 | J40: =+IF($G$2=FALSE,0,Tablas!F743) -> 225 | K40: =+IF($G$2=FALSE,0,Tablas!G743) -> 225 | L40: =+IF($G$2=FALSE,0,Tablas!H743) -> 225
F41: Rider: Trasplante Órganos | G41: n/a | H41: =+IF($H$2=FALSE,0,Tablas!D744) -> 300 | I41: =+IF($H$2=FALSE,0,Tablas!E744) -> 300 | J41: =+IF($H$2=FALSE,0,Tablas!F744) -> 300 | K41: =+IF($H$2=FALSE,0,Tablas!G744) -> 300 | L41: =+IF($H$2=FALSE,0,Tablas!H744) -> 300
F42: Rider: Eliminación de Deducible | G42: n/a | H42: =+IF($G$3=FALSE,0,Tablas!D745) -> 180 | I42: =+IF($G$3=FALSE,0,Tablas!E745) -> 345 | J42: =+IF($G$3=FALSE,0,Tablas!F745) -> 775 | K42: =+IF($G$3=FALSE,0,Tablas!G745) -> 1330 | L42: =+IF($G$3=FALSE,0,Tablas!H745) -> 2080
F43: TOTAL PRIMA NETA | G43: n/a | H43: =SUM(H37:H42) -> 30625 | I43: =SUM(I37:I42) -> 23806 | J43: 18571 | K43: 15053 | L43: 11986
F44: Costo Administrativo Anual | G44: n/a | H44: 75 | I44: 75 | J44: 75 | K44: 75 | L44: 75
F45: IVA (12%) | G45: n/a | H45: =SUM(H43:H44)*'INGRESO DE DATOS'!$S$19 -> 3684 | I45: =SUM(I43:I44)*'INGRESO DE DATOS'!$S$19 -> 2865.72 | J45: =SUM(J43:J44)*'INGRESO DE DATOS'!$S$19 -> 2237.52 | K45: =SUM(K43:K44)*'INGRESO DE DATOS'!$S$19 -> 1815.36 | L45: =SUM(L43:L44)*'INGRESO DE DATOS'!$S$19 -> 1447.32
F46: GRAN TOTAL: | G46: n/a | H46: =SUM(H43:H45) -> 34384 | I46: =SUM(I43:I45) -> 26746.72 | J46: 20883.52 | K46: 16943.36 | L46: 13508.32
F49: TARIFAS SEMESTRALES
F50: Prima de Titular | G50: n/a | H50: =VLOOKUP($G$19,Tablas!$A$752:$H$814,4,TRUE) -> 5274.03 | I50: =VLOOKUP($G$19,Tablas!$A$752:$H$814,5,TRUE) -> 4038.6 | J50: =VLOOKUP($G$19,Tablas!$A$752:$H$814,6,TRUE) -> 2955.28 | K50: =VLOOKUP($G$19,Tablas!$A$752:$H$814,7,TRUE) -> 2202.15 | L50: =VLOOKUP($G$19,Tablas!$A$752:$H$814,8,TRUE) -> 1703.95
F51: Prima de Cónyuge | G51: n/a | H51: =IF($G$17=1,0,(VLOOKUP($L$19,Tablas!$A$752:$H$814,4,TRUE))) -> 7440.14 | I51: =IF($G$17=1,0,(VLOOKUP($L$19,Tablas!$A$752:$H$814,5,TRUE))) -> 5946.6 | J51: =IF($G$17=1,0,(VLOOKUP($L$19,Tablas!$A$752:$H$814,6,TRUE))) -> 4592.98 | K51: =IF($G$17=1,0,(VLOOKUP($L$19,Tablas!$A$752:$H$814,7,TRUE))) -> 3406.84 | L51: =IF($G$17=1,0,(VLOOKUP($L$19,Tablas!$A$752:$H$814,8,TRUE))) -> 2344.19
F52: Primas Hijos | G52: n/a | H52: =IF($L$17=0,0,(VLOOKUP($L$17,Tablas!$A$815:$H$817,4,TRUE))) -> 3143.43 | I52: =IF($L$17=0,0,(VLOOKUP($L$17,Tablas!$A$815:$H$817,5,TRUE))) -> 2170.88 | J52: =IF($L$17=0,0,(VLOOKUP($L$17,Tablas!$A$815:$H$817,6,TRUE))) -> 1605.37 | K52: =IF($L$17=0,0,(VLOOKUP($L$17,Tablas!$A$815:$H$817,7,TRUE))) -> 1385.95 | L52: =IF($L$17=0,0,(VLOOKUP($L$17,Tablas!$A$815:$H$817,8,TRUE))) -> 923.79
F53: Rider: Complicación de Maternidad | G53: n/a | H53: =+IF($G$2=FALSE,0,Tablas!D818) -> 119.25 | I53: =+IF($G$2=FALSE,0,Tablas!E818) -> 119.25 | J53: =+IF($G$2=FALSE,0,Tablas!F818) -> 119.25 | K53: =+IF($G$2=FALSE,0,Tablas!G818) -> 119.25 | L53: =+IF($G$2=FALSE,0,Tablas!H818) -> 119.25
F54: Rider: Trasplante Órganos | G54: n/a | H54: =+IF($H$2=FALSE,0,Tablas!D819) -> 159 | I54: =+IF($H$2=FALSE,0,Tablas!E819) -> 159 | J54: =+IF($H$2=FALSE,0,Tablas!F819) -> 159 | K54: =+IF($H$2=FALSE,0,Tablas!G819) -> 159 | L54: =+IF($H$2=FALSE,0,Tablas!H819) -> 159
F55: Rider: Eliminación de Deducible | G55: n/a | H55: =+IF($G$3=FALSE,0,Tablas!D820) -> 95.4 | I55: =+IF($G$3=FALSE,0,Tablas!E820) -> 182.85 | J55: =+IF($G$3=FALSE,0,Tablas!F820) -> 410.75 | K55: =+IF($G$3=FALSE,0,Tablas!G820) -> 704.9 | L55: =+IF($G$3=FALSE,0,Tablas!H820) -> 1102.4
F56: TOTAL PRIMA NETA | G56: n/a | H56: =SUM(H50:H55) -> 16231.25 | I56: =SUM(I50:I55) -> 12617.18 | J56: =SUM(J50:J55) -> 9842.63 | K56: =SUM(K50:K55) -> 7978.09 | L56: =SUM(L50:L55) -> 6352.58
F57: Costo Administrativo Anual | G57: n/a | H57: 75 | I57: 75 | J57: 75 | K57: 75 | L57: 75
F58: IVA (12%) | G58: n/a | H58: =SUM(H56:H57)*'INGRESO DE DATOS'!$S$19 -> 1956.75 | I58: =SUM(I56:I57)*'INGRESO DE DATOS'!$S$19 -> 1523.0616 | J58: =SUM(J56:J57)*'INGRESO DE DATOS'!$S$19 -> 1190.1156 | K58: =SUM(K56:K57)*'INGRESO DE DATOS'!$S$19 -> 966.3708 | L58: =SUM(L56:L57)*'INGRESO DE DATOS'!$S$19 -> 771.3096
F59: TOTAL (1ra Cuota) | G59: n/a | H59: =SUM(H56:H58) -> 18263 | I59: =SUM(I56:I58) -> 14215.2416 | J59: 11107.7456 | K59: 9019.4608 | L59: 7198.8896
F60: TOTAL (2da Cuota) | G60: n/a | H60: =H59-H57*'INGRESO DE DATOS'!$T$19 -> 18179 | I60: =I59-I57*'INGRESO DE DATOS'!$T$19 -> 14131.2416 | J60: =J59-J57*'INGRESO DE DATOS'!$T$19 -> 11023.7456 | K60: =K59-K57*'INGRESO DE DATOS'!$T$19 -> 8935.4608 | L60: =L59-L57*'INGRESO DE DATOS'!$T$19 -> 7114.8896
F61: GRAN TOTAL | G61: n/a | H61: =SUM(H59:H60) -> 36442 | I61: =SUM(I59:I60) -> 28346.4832 | J61: 22131.4912 | K61: 17954.9216 | L61: 14313.7792
F64: TARIFAS TRIMESTRALES
F65: Prima de Titular | G65: n/a | H65: =VLOOKUP($G$19,Tablas!$A$828:$H$890,4,TRUE) -> 2736.525 | I65: =VLOOKUP($G$19,Tablas!$A$828:$H$890,5,TRUE) -> 2095.5 | J65: =VLOOKUP($G$19,Tablas!$A$828:$H$890,6,TRUE) -> 1533.4 | K65: =VLOOKUP($G$19,Tablas!$A$828:$H$890,7,TRUE) -> 1142.625 | L65: =VLOOKUP($G$19,Tablas!$A$828:$H$890,8,TRUE) -> 884.125
F66: Prima de Cónyuge | G66: n/a | H66: =IF($G$17=1,0,(VLOOKUP($L$19,Tablas!$A$828:$H$890,4,TRUE))) -> 3860.45 | I66: =IF($G$17=1,0,(VLOOKUP($L$19,Tablas!$A$828:$H$890,5,TRUE))) -> 3085.5 | J66: =IF($G$17=1,0,(VLOOKUP($L$19,Tablas!$A$828:$H$890,6,TRUE))) -> 2383.15 | K66: =IF($G$17=1,0,(VLOOKUP($L$19,Tablas!$A$828:$H$890,7,TRUE))) -> 1767.7 | L66: =IF($G$17=1,0,(VLOOKUP($L$19,Tablas!$A$828:$H$890,8,TRUE))) -> 1216.325
F67: Primas Hijos | G67: n/a | H67: =IF($L$17=0,0,(VLOOKUP($L$17,Tablas!$A$891:$H$893,4,TRUE))) -> 1631.025 | I67: =IF($L$17=0,0,(VLOOKUP($L$17,Tablas!$A$891:$H$893,5,TRUE))) -> 1126.4 | J67: =IF($L$17=0,0,(VLOOKUP($L$17,Tablas!$A$891:$H$893,6,TRUE))) -> 832.975 | K67: =IF($L$17=0,0,(VLOOKUP($L$17,Tablas!$A$891:$H$893,7,TRUE))) -> 719.125 | L67: =IF($L$17=0,0,(VLOOKUP($L$17,Tablas!$A$891:$H$893,8,TRUE))) -> 479.325
F68: Rider: Complicación de Maternidad | G68: n/a | H68: =+IF($G$2=FALSE,0,Tablas!D894) -> 61.875 | I68: =+IF($G$2=FALSE,0,Tablas!E894) -> 61.875 | J68: =+IF($G$2=FALSE,0,Tablas!F894) -> 61.875 | K68: =+IF($G$2=FALSE,0,Tablas!G894) -> 61.875 | L68: =+IF($G$2=FALSE,0,Tablas!H894) -> 61.875
F69: Rider: Trasplante Órganos | G69: n/a | H69: =+IF($H$2=FALSE,0,Tablas!D895) -> 82.5 | I69: =+IF($H$2=FALSE,0,Tablas!E895) -> 82.5 | J69: =+IF($H$2=FALSE,0,Tablas!F895) -> 82.5 | K69: =+IF($H$2=FALSE,0,Tablas!G895) -> 82.5 | L69: =+IF($H$2=FALSE,0,Tablas!H895) -> 82.5
F70: Rider: Eliminación de Deducible | G70: n/a | H70: =+IF($G$3=FALSE,0,Tablas!D896) -> 49.5 | I70: =+IF($G$3=FALSE,0,Tablas!E896) -> 94.875 | J70: =+IF($G$3=FALSE,0,Tablas!F896) -> 213.125 | K70: =+IF($G$3=FALSE,0,Tablas!G896) -> 365.75 | L70: =+IF($G$3=FALSE,0,Tablas!H896) -> 572
F71: TOTAL PRIMA NETA | G71: n/a | H71: =SUM(H65:H70) -> 8421.875 | I71: =SUM(I65:I70) -> 6546.65 | J71: =SUM(J65:J70) -> 5107.025 | K71: =SUM(K65:K70) -> 4139.575 | L71: =SUM(L65:L70) -> 3296.15
F72: Costo Administrativo Anual | G72: n/a | H72: 75 | I72: 75 | J72: 75 | K72: 75 | L72: 75
F73: IVA (12%) | G73: n/a | H73: =SUM(H71:H72)*'INGRESO DE DATOS'!$S$19 -> 1019.625 | I73: =SUM(I71:I72)*'INGRESO DE DATOS'!$S$19 -> 794.598 | J73: =SUM(J71:J72)*'INGRESO DE DATOS'!$S$19 -> 621.843 | K73: =SUM(K71:K72)*'INGRESO DE DATOS'!$S$19 -> 505.749 | L73: =SUM(L71:L72)*'INGRESO DE DATOS'!$S$19 -> 404.538
F74: TOTAL (1ra Cuota) | G74: n/a | H74: =SUM(H71:H73) -> 9516.5 | I74: =SUM(I71:I73) -> 7416.248 | J74: 5803.868 | K74: 4720.324 | L74: 3775.688
F75: TOTAL (2da a 4ta Cuota) | G75: n/a | H75: =H74-H72*'INGRESO DE DATOS'!$T$19 -> 9432.5 | I75: =I74-I72*'INGRESO DE DATOS'!$T$19 -> 7332.248 | J75: =J74-J72*'INGRESO DE DATOS'!$T$19 -> 5719.868 | K75: =K74-K72*'INGRESO DE DATOS'!$T$19 -> 4636.324 | L75: =L74-L72*'INGRESO DE DATOS'!$T$19 -> 3691.688
F76: GRAN TOTAL | G76: n/a | H76: =H74+H75*3 -> 37814 | I76: =I74+I75*3 -> 29412.992 | J76: 22963.472 | K76: 18629.296 | L76: 14850.752
F81: Este presupuesto solamente tiene carácter informativo y en ningún momento expresa compromiso legal para suministrarle cobertura de seguro. La emisión de una póliza de seguro Bupa está sujeta a todas las evaluaciones de riesgo por parte de Bupa y a la recepción de todos los pagos de prima requeridos.

Sheet Bupa Secure Care
B1: TRUE | C1: TRUE | I1: RESUMEN DE BENEFICIOS | Q1: RESUMEN DE BENEFICIOS
A5: Cotización de Seguro Médico Internacional Bupa Secure Care Tarifas en US$ | Validas: 1 de enero de 2025 | G5: REGIÓN
G7: =IF('INGRESO DE DATOS'!W14="Guatemala","GUATEMALA",'INGRESO DE DATOS'!W14) -> GUATEMALA
A13: Nombre del asegurado principal | B13: =+'INGRESO DE DATOS'!$C$36 -> John Doe
A15: Broker/Agente | B15: =+'INGRESO DE DATOS'!$C$44 -> Agencia
A17: Número de Adultos en la Póliza | B17: =+'INGRESO DE DATOS'!$C$38 -> 2 | D17: Dependientes (menores de 24 años) | G17: =+'INGRESO DE DATOS'!$F$38 -> 2
D18: =IF('INGRESO DE DATOS'!$P$2=TRUE, "Cotización para dependiente de 24 años","") -> 
A19: Edad del Titular | B19: =+'INGRESO DE DATOS'!$C$40 -> 32 | D19: Edad del Cónyuge | G19: =+'INGRESO DE DATOS'!$F$40 -> 46
D21: Fecha de Cotización: | F21: =NOW() -> 2025-01-27T13:32:07.300
A25: DEDUCIBLES | B25: PLAN 1 | C25: PLAN 2 | D25: PLAN 3 | E25: PLAN 4 | F25: PLAN 5 | G25: PLAN 6
A26: Dentro del pais de residencia | B26: n/a | C26: 1000 | D26: 2000 | E26: 5000 | F26: 10000 | G26: 20000
A27: Fuera del pais de residencia | B27: n/a | C27: 2000 | D27: 3000 | E27: 5000 | F27: 10000 | G27: 20000
A30: TARIFAS ANUALES
A31: Prima de Titular | B31: n/a | C31: =VLOOKUP($B$19,Tablas!$A$118:$H$141,4,TRUE) -> 9343 | D31: =VLOOKUP($B$19,Tablas!$A$118:$H$141,5,TRUE) -> 7652 | E31: =VLOOKUP($B$19,Tablas!$A$118:$H$141,6,TRUE) -> 5655 | F31: =VLOOKUP($B$19,Tablas!$A$118:$H$141,7,TRUE) -> 4743 | G31: =VLOOKUP($B$19,Tablas!$A$118:$H$141,8,TRUE) -> 3601
A32: Prima de Cónyuge | B32: n/a | C32: =IF($B$17=1,0,(VLOOKUP($G$19,Tablas!$A$828:$H$890,4,TRUE))) -> 3860.45 | D32: =IF($B$17=1,0,(VLOOKUP($G$19,Tablas!$A$828:$H$890,5,TRUE))) -> 3085.5 | E32: =IF($B$17=1,0,(VLOOKUP($G$19,Tablas!$A$828:$H$890,6,TRUE))) -> 2383.15 | F32: =IF($B$17=1,0,(VLOOKUP($G$19,Tablas!$A$828:$H$890,7,TRUE))) -> 1767.7 | G32: =IF($B$17=1,0,(VLOOKUP($G$19,Tablas!$A$828:$H$890,8,TRUE))) -> 1216.325
A33: Primas Hijos | B33: n/a | C33: =IF($G$17=0,0,(VLOOKUP($G$17,Tablas!$A$142:$H$144,4,TRUE))) -> 6043 | D33: =IF($G$17=0,0,(VLOOKUP($G$17,Tablas!$A$142:$H$144,5,TRUE))) -> 3148 | E33: =IF($G$17=0,0,(VLOOKUP($G$17,Tablas!$A$142:$H$144,6,TRUE))) -> 2751 | F33: =IF($G$17=0,0,(VLOOKUP($G$17,Tablas!$A$142:$H$144,7,TRUE))) -> 2298 | G33: =IF($G$17=0,0,(VLOOKUP($G$17,Tablas!$A$142:$H$144,8,TRUE))) -> 1686
A34: Rider: Complicaciones de Maternidad | B34: n/a | C34: =+IF($B$1=FALSE,0,Tablas!D145) -> 225 | D34: =+IF($B$1=FALSE,0,Tablas!E145) -> 225 | E34: =+IF($B$1=FALSE,0,Tablas!F145) -> 225 | F34: =+IF($B$1=FALSE,0,Tablas!G145) -> 225 | G34: =+IF($B$1=FALSE,0,Tablas!H145) -> 225
A35: Rider: Trasplante Organos | B35: n/a | C35: =IF($C$1=FALSE,0,Tablas!D146) -> 300 | D35: =IF($C$1=FALSE,0,Tablas!E146) -> 300 | E35: =IF($C$1=FALSE,0,Tablas!F146) -> 300 | F35: =IF($C$1=FALSE,0,Tablas!G146) -> 300 | G35: =IF($C$1=FALSE,0,Tablas!H146) -> 300
A36: TOTAL PRIMA NETA | B36: n/a | C36: =SUM(C31:C35) -> 19771.45 | D36: 14410.5 | E36: 11314.15 | F36: 9333.7 | G36: 7028.325
A37: Costo Administrativo Annual | B37: n/a | C37: 75 | D37: 75 | E37: 75 | F37: 75 | G37: 75
A38: IVA (12%) | B38: n/a | C38: =SUM(C36:C37)*'INGRESO DE DATOS'!$S$19 -> 2381.574 | D38: =SUM(D36:D37)*'INGRESO DE DATOS'!$S$19 -> 1738.26 | E38: =SUM(E36:E37)*'INGRESO DE DATOS'!$S$19 -> 1366.698 | F38: =SUM(F36:F37)*'INGRESO DE DATOS'!$S$19 -> 1129.044 | G38: =SUM(G36:G37)*'INGRESO DE DATOS'!$S$19 -> 852.399
A39: GRAN TOTAL : | B39: n/a | C39: =SUM(C36:C38) -> 22228.024 | D39: =SUM(D36:D38) -> 16223.76 | E39: =SUM(E36:E38) -> 12755.848 | F39: =SUM(F36:F38) -> 10537.744 | G39: =SUM(G36:G38) -> 7955.724
A42: TARIFAS SEMESTRALES
A43: Prima de Titular | B43: n/a | C43: =VLOOKUP($B$19,Tablas!$A$152:$H$175,4,TRUE) -> 4951.79 | D43: =VLOOKUP($B$19,Tablas!$A$152:$H$175,5,TRUE) -> 4055.56 | E43: =VLOOKUP($B$19,Tablas!$A$152:$H$175,6,TRUE) -> 2997.15 | F43: =VLOOKUP($B$19,Tablas!$A$152:$H$175,7,TRUE) -> 2513.79 | G43: =VLOOKUP($B$19,Tablas!$A$152:$H$175,8,TRUE) -> 1908.53
A44: Prima de Cónyuge | B44: n/a | C44: =IF($B$17=1,0,(VLOOKUP($G$19,Tablas!$A$152:$H$175,4,TRUE))) -> 7042.64 | D44: =IF($B$17=1,0,(VLOOKUP($G$19,Tablas!$A$152:$H$175,5,TRUE))) -> 6101.89 | E44: =IF($B$17=1,0,(VLOOKUP($G$19,Tablas!$A$152:$H$175,6,TRUE))) -> 4370.91 | F44: =IF($B$17=1,0,(VLOOKUP($G$19,Tablas!$A$152:$H$175,7,TRUE))) -> 3691.45 | G44: =IF($B$17=1,0,(VLOOKUP($G$19,Tablas!$A$152:$H$175,8,TRUE))) -> 2758.12
A45: Primas Hijos | B45: n/a | C45: =IF($G$17=0,0,(VLOOKUP($G$17,Tablas!$A$176:$H$178,4,TRUE))) -> 3202.79 | D45: =IF($G$17=0,0,(VLOOKUP($G$17,Tablas!$A$176:$H$178,5,TRUE))) -> 1668.44 | E45: =IF($G$17=0,0,(VLOOKUP($G$17,Tablas!$A$176:$H$178,6,TRUE))) -> 1458.03 | F45: =IF($G$17=0,0,(VLOOKUP($G$17,Tablas!$A$176:$H$178,7,TRUE))) -> 1217.94 | G45: =IF($G$17=0,0,(VLOOKUP($G$17,Tablas!$A$176:$H$178,8,TRUE))) -> 893.58
A46: Rider: Complicaciones de Maternidad | B46: n/a | C46: =+IF($B$1=FALSE,0,Tablas!D179) -> 119.25 | D46: =+IF($B$1=FALSE,0,Tablas!E179) -> 119.25 | E46: =+IF($B$1=FALSE,0,Tablas!F179) -> 119.25 | F46: =+IF($B$1=FALSE,0,Tablas!G179) -> 119.25 | G46: =+IF($B$1=FALSE,0,Tablas!H179) -> 119.25
A47: Rider: Trasplante Organos | B47: n/a | C47: =IF($C$1=FALSE,0,Tablas!D180) -> 159 | D47: =IF($C$1=FALSE,0,Tablas!E180) -> 159 | E47: =IF($C$1=FALSE,0,Tablas!F180) -> 159 | F47: =IF($C$1=FALSE,0,Tablas!G180) -> 159 | G47: =IF($C$1=FALSE,0,Tablas!H180) -> 159
A48: TOTAL PRIMA NETA | B48: n/a | C48: =SUM(C43:C47) -> 15475.47 | D48: 12104.14 | E48: 9104.34 | F48: 7701.43 | G48: 5838.48
A49: Costo Administrativo Anual | B49: n/a | C49: 75 | D49: 75 | E49: 75 | F49: 75 | G49: 75
A50: IVA (12%) | B50: n/a | C50: =SUM(C48:C49)*'INGRESO DE DATOS'!$S$19 -> 1866.0564 | D50: =SUM(D48:D49)*'INGRESO DE DATOS'!$S$19 -> 1461.4968 | E50: =SUM(E48:E49)*'INGRESO DE DATOS'!$S$19 -> 1101.5208 | F50: =SUM(F48:F49)*'INGRESO DE DATOS'!$S$19 -> 933.1716 | G50: =SUM(G48:G49)*'INGRESO DE DATOS'!$S$19 -> 709.6176
A51: TOTAL (1ra Cuota) | B51: n/a | C51: =SUM(C48:C50) -> 17416.5264 | D51: =SUM(D48:D50) -> 13640.6368 | E51: =SUM(E48:E50) -> 10280.8608 | F51: =SUM(F48:F50) -> 8709.6016 | G51: =SUM(G48:G50) -> 6623.0976
A52: TOTAL (2da Cuota) | B52: n/a | C52: =C51-C49*'INGRESO DE DATOS'!$T$19 -> 17332.5264 | D52: =D51-D49*'INGRESO DE DATOS'!$T$19 -> 13556.6368 | E52: =E51-E49*'INGRESO DE DATOS'!$T$19 -> 10196.8608 | F52: =F51-F49*'INGRESO DE DATOS'!$T$19 -> 8625.6016 | G52: =G51-G49*'INGRESO DE DATOS'!$T$19 -> 6539.0976
A53: GRAN TOTAL | B53: n/a | C53: =SUM(C51:C52) -> 34749.0528 | D53: =SUM(D51:D52) -> 27197.2736 | E53: 20477.7216 | F53: 17335.2032 | G53: 13162.1952
A56: TARIFAS TRIMESTRALES
A57: Prima de Titular | B57: n/a | C57: =VLOOKUP($B$19,Tablas!$A$187:$H$210,4,TRUE) -> 2569.325 | D57: =VLOOKUP($B$19,Tablas!$A$187:$H$210,5,TRUE) -> 2104.3 | E57: =VLOOKUP($B$19,Tablas!$A$187:$H$210,6,TRUE) -> 1555.125 | F57: =VLOOKUP($B$19,Tablas!$A$187:$H$210,7,TRUE) -> 1304.325 | G57: =VLOOKUP($B$19,Tablas!$A$187:$H$210,8,TRUE) -> 990.275
A58: Prima de Cónyuge | B58: n/a | C58: =IF($B$17=1,0,(VLOOKUP($G$19,Tablas!$A$187:$H$210,4,TRUE))) -> 3654.2 | D58: =IF($B$17=1,0,(VLOOKUP($G$19,Tablas!$A$187:$H$210,5,TRUE))) -> 3166.075 | E58: =IF($B$17=1,0,(VLOOKUP($G$19,Tablas!$A$187:$H$210,6,TRUE))) -> 2267.925 | F58: =IF($B$17=1,0,(VLOOKUP($G$19,Tablas!$A$187:$H$210,7,TRUE))) -> 1915.375 | G58: =IF($B$17=1,0,(VLOOKUP($G$19,Tablas!$A$187:$H$210,8,TRUE))) -> 1431.1
A59: Primas Hijos | B59: n/a | C59: =IF($G$17=0,0,(VLOOKUP($G$17,Tablas!$A$211:$H$213,4,TRUE))) -> 1661.825 | D59: =IF($G$17=0,0,(VLOOKUP($G$17,Tablas!$A$211:$H$213,5,TRUE))) -> 865.7 | E59: =IF($G$17=0,0,(VLOOKUP($G$17,Tablas!$A$211:$H$213,6,TRUE))) -> 756.525 | F59: =IF($G$17=0,0,(VLOOKUP($G$17,Tablas!$A$211:$H$213,7,TRUE))) -> 631.95 | G59: =IF($G$17=0,0,(VLOOKUP($G$17,Tablas!$A$211:$H$213,8,TRUE))) -> 463.65
A60: Rider: Complicaciones de Maternidad | B60: n/a | C60: =+IF($B$1=FALSE,0,Tablas!D214) -> 61.875 | D60: =+IF($B$1=FALSE,0,Tablas!E214) -> 61.875 | E60: =+IF($B$1=FALSE,0,Tablas!F214) -> 61.875 | F60: =+IF($B$1=FALSE,0,Tablas!G214) -> 61.875 | G60: =+IF($B$1=FALSE,0,Tablas!H214) -> 61.875
A61: Rider: Trasplante Organos | B61: n/a | C61: =IF($C$1=FALSE,0,Tablas!D215) -> 82.5 | D61: =IF($C$1=FALSE,0,Tablas!E215) -> 82.5 | E61: =IF($C$1=FALSE,0,Tablas!F215) -> 82.5 | F61: =IF($C$1=FALSE,0,Tablas!G215) -> 82.5 | G61: =IF($C$1=FALSE,0,Tablas!H215) -> 82.5
A62: TOTAL PRIMA NETA | B62: n/a | C62: =SUM(C57:C61) -> 8029.725 | D62: 6280.45 | E62: 4723.95 | F62: 3996.025 | G62: 3029.4
A63: Costo Administrativo Anual | B63: n/a | C63: 75 | D63: 75 | E63: 75 | F63: 75 | G63: 75
A64: IVA (12%) | B64: n/a | C64: =SUM(C62:C63)*'INGRESO DE DATOS'!$S$19 -> 972.567 | D64: =SUM(D62:D63)*'INGRESO DE DATOS'!$S$19 -> 762.654 | E64: =SUM(E62:E63)*'INGRESO DE DATOS'!$S$19 -> 575.874 | F64: =SUM(F62:F63)*'INGRESO DE DATOS'!$S$19 -> 488.523 | G64: =SUM(G62:G63)*'INGRESO DE DATOS'!$S$19 -> 372.528
A65: TOTAL (1ra Cuota) | B65: n/a | C65: =SUM(C62:C64) -> 9077.292 | D65: =SUM(D62:D64) -> 7118.104 | E65: 5374.824 | F65: 4559.548 | G65: 3476.928
A66: TOTAL (2da a 4ta Cuota) | B66: n/a | C66: =C65-C63*'INGRESO DE DATOS'!$T$19 -> 8993.292 | D66: =D65-D63*'INGRESO DE DATOS'!$T$19 -> 7034.104 | E66: =E65-E63*'INGRESO DE DATOS'!$T$19 -> 5290.824 | F66: =F65-F63*'INGRESO DE DATOS'!$T$19 -> 4475.548 | G66: =G65-G63*'INGRESO DE DATOS'!$T$19 -> 3392.928
A67: GRAN TOTAL | B67: n/a | C67: =C65+C66*3 -> 36057.168 | D67: =D65+D66*3 -> 28220.416 | E67: 21247.296 | F67: 17986.192 | G67: 13655.712
A69: Este presupuesto solamente tiene carácter informativo y en ningún momento expresa compromiso legal para suministrarle cobertura de seguro. La emisión de una póliza de seguro Bupa está sujeta a todas las evaluaciones de riesgo por parte de Bupa y a la recepción de todos los pagos de prima requeridos.

Sheet Bupa Essential Care
B1: FALSE | C1: TRUE | I1: RESUMEN DE BENEFICIOS | Q1: RESUMEN DE BENEFICIOS
A5: Cotización de Seguro Médico Internacional Bupa Essential Care Tarifas en US$ | Validas: 1 de enero de 2025 | G5: REGIÓN
G7: =IF('INGRESO DE DATOS'!W14="Guatemala","GUATEMALA",'INGRESO DE DATOS'!W14) -> GUATEMALA
A13: Nombre del asegurado principal | B13: =+'INGRESO DE DATOS'!$C$36 -> John Doe
A15: Broker/Agente | B15: =+'INGRESO DE DATOS'!$C$44 -> Agencia
A17: Número de Adultos en la Póliza | B17: =+'INGRESO DE DATOS'!$C$38 -> 2 | D17: Dependientes (menores de 24 años) | G17: =+'INGRESO DE DATOS'!$F$38 -> 2
D18: =IF('INGRESO DE DATOS'!$P$2=TRUE, "Cotización para dependiente de 24 años","") -> 
A19: Edad del Titular | B19: =+'INGRESO DE DATOS'!$C$40 -> 32 | D19: Edad del Cónyuge | G19: =+'INGRESO DE DATOS'!$F$40 -> 46
D21: Fecha de Cotización: | F21: =NOW() -> 2025-01-27T13:32:07.300
A25: DEdUCIBLES | B25: PLAN 1 | C25: PLAN 2 | D25: PLAN 3 | E25: PLAN 4 | F25: PLAN 5 | G25: PLAN 6
A26: Dentro del pais de residencia | B26: 250 | C26: 250 | D26: 1000 | E26: 5000 | F26: 10000 | G26: 20000
A27: Fuera del pais de residencia | B27: 1000 | C27: 5000 | D27: 10000 | E27: 5000 | F27: 10000 | G27: 20000
A30: TARIFAS ANUALES
A31: Prima de Titular | B31: =VLOOKUP($B$19,Tablas!$A$224:$H$286,3,TRUE) -> 2277 | C31: =VLOOKUP($B$19,Tablas!$A$224:$H$286,4,TRUE) -> 2190 | D31: =VLOOKUP($B$19,Tablas!$A$224:$H$286,5,TRUE) -> 2030 | E31: =VLOOKUP($B$19,Tablas!$A$224:$H$286,6,TRUE) -> 1439 | F31: =VLOOKUP($B$19,Tablas!$A$224:$H$286,7,TRUE) -> 1054 | G31: =VLOOKUP($B$19,Tablas!$A$224:$H$286,8,TRUE) -> 748
A32: Prima de Cónyuge | B32: =IF($B$17=1,0,(VLOOKUP($G$19,Tablas!$A$224:$H$286,3,TRUE))) -> 3461 | C32: =IF($B$17=1,0,(VLOOKUP($G$19,Tablas!$A$224:$H$286,4,TRUE))) -> 3328 | D32: =IF($B$17=1,0,(VLOOKUP($G$19,Tablas!$A$224:$H$286,5,TRUE))) -> 3086 | E32: =IF($B$17=1,0,(VLOOKUP($G$19,Tablas!$A$224:$H$286,6,TRUE))) -> 2185 | F32: =IF($B$17=1,0,(VLOOKUP($G$19,Tablas!$A$224:$H$286,7,TRUE))) -> 1538 | G32: =IF($B$17=1,0,(VLOOKUP($G$19,Tablas!$A$224:$H$286,8,TRUE))) -> 1075
A33: Primas Hijos | B33: =IF($G$17=0,0,(VLOOKUP($G$17,Tablas!$A$287:$H$289,3,TRUE))) -> 1157 | C33: =IF($G$17=0,0,(VLOOKUP($G$17,Tablas!$A$287:$H$289,4,TRUE))) -> 1113 | D33: =IF($G$17=0,0,(VLOOKUP($G$17,Tablas!$A$287:$H$289,5,TRUE))) -> 1031 | E33: =IF($G$17=0,0,(VLOOKUP($G$17,Tablas!$A$287:$H$289,6,TRUE))) -> 731 | F33: =IF($G$17=0,0,(VLOOKUP($G$17,Tablas!$A$287:$H$289,7,TRUE))) -> 610 | G33: =IF($G$17=0,0,(VLOOKUP($G$17,Tablas!$A$287:$H$289,8,TRUE))) -> 482
A34: Rider: Complicaciones de Maternidad | B34: =+IF($B$1=FALSE,0,Tablas!C290) -> 0 | C34: =+IF($B$1=FALSE,0,Tablas!D290) -> 0 | D34: =+IF($B$1=FALSE,0,Tablas!E290) -> 0 | E34: =+IF($B$1=FALSE,0,Tablas!F290) -> 0 | F34: =+IF($B$1=FALSE,0,Tablas!G290) -> 0 | G34: =+IF($B$1=FALSE,0,Tablas!H290) -> 0
A35: Rider: Trasplante Organos | B35: =+IF($C$1=FALSE,0,Tablas!C291) -> 300 | C35: =+IF($C$1=FALSE,0,Tablas!D291) -> 300 | D35: =+IF($C$1=FALSE,0,Tablas!E291) -> 300 | E35: =+IF($C$1=FALSE,0,Tablas!F291) -> 300 | F35: =+IF($C$1=FALSE,0,Tablas!G291) -> 300 | G35: =+IF($C$1=FALSE,0,Tablas!H291) -> 300
A36: TOTAL PRIMA NETA | B36: =SUM(B31:B35) -> 7195 | C36: 6931 | D36: 6447 | E36: 4655 | F36: 3502 | G36: 2605
A37: Costo Administrativo Annual | B37: 75 | C37: 75 | D37: 75 | E37: 75 | F37: 75 | G37: 75
A38: IVA (12%) | B38: =SUM(B36:B37)*'INGRESO DE DATOS'!$S$19 -> 872.4 | C38: =SUM(C36:C37)*'INGRESO DE DATOS'!$S$19 -> 840.72 | D38: =SUM(D36:D37)*'INGRESO DE DATOS'!$S$19 -> 782.64 | E38: =SUM(E36:E37)*'INGRESO DE DATOS'!$S$19 -> 567.6 | F38: =SUM(F36:F37)*'INGRESO DE DATOS'!$S$19 -> 429.24 | G38: =SUM(G36:G37)*'INGRESO DE DATOS'!$S$19 -> 321.6
A39: GRAN TOTAL : | B39: =SUM(B36:B38) -> 8142.4 | C39: =SUM(C36:C38) -> 7846.72 | D39: =SUM(D36:D38) -> 7304.64 | E39: 5297.6 | F39: 4006.24 | G39: 3001.6
A42: TARIFAS SEMESTRALES
A43: Prima de Titular | B43: =VLOOKUP($B$19,Tablas!$A$298:$H$360,3,TRUE) -> 1206.81 | C43: =VLOOKUP($B$19,Tablas!$A$298:$H$360,4,TRUE) -> 1160.7 | D43: =VLOOKUP($B$19,Tablas!$A$298:$H$360,5,TRUE) -> 1075.9 | E43: =VLOOKUP($B$19,Tablas!$A$298:$H$360,6,TRUE) -> 762.67 | F43: =VLOOKUP($B$19,Tablas!$A$298:$H$360,7,TRUE) -> 558.62 | G43: =VLOOKUP($B$19,Tablas!$A$298:$H$360,8,TRUE) -> 396.44
A44: Prima de Cónyuge | B44: =IF($B$17=1,0,(VLOOKUP($G$19,Tablas!$A$298:$H$360,3,TRUE))) -> 1834.33 | C44: =IF($B$17=1,0,(VLOOKUP($G$19,Tablas!$A$298:$H$360,4,TRUE))) -> 1763.84 | D44: =IF($B$17=1,0,(VLOOKUP($G$19,Tablas!$A$298:$H$360,5,TRUE))) -> 1635.58 | E44: =IF($B$17=1,0,(VLOOKUP($G$19,Tablas!$A$298:$H$360,6,TRUE))) -> 1158.05 | F44: =IF($B$17=1,0,(VLOOKUP($G$19,Tablas!$A$298:$H$360,7,TRUE))) -> 815.14 | G44: =IF($B$17=1,0,(VLOOKUP($G$19,Tablas!$A$298:$H$360,8,TRUE))) -> 569.75
A45: Primas Hijos | B45: =IF($G$17=0,0,(VLOOKUP($G$17,Tablas!$A$361:$H$363,3,TRUE))) -> 613.21 | C45: =IF($G$17=0,0,(VLOOKUP($G$17,Tablas!$A$361:$H$363,4,TRUE))) -> 589.89 | D45: =IF($G$17=0,0,(VLOOKUP($G$17,Tablas!$A$361:$H$363,5,TRUE))) -> 546.43 | E45: =IF($G$17=0,0,(VLOOKUP($G$17,Tablas!$A$361:$H$363,6,TRUE))) -> 387.43 | F45: =IF($G$17=0,0,(VLOOKUP($G$17,Tablas!$A$361:$H$363,7,TRUE))) -> 323.3 | G45: =IF($G$17=0,0,(VLOOKUP($G$17,Tablas!$A$361:$H$363,8,TRUE))) -> 255.46
A46: Rider: Complicaciones de Maternidad | B46: =+IF($B$1=FALSE,0,Tablas!C364) -> 0 | C46: =+IF($B$1=FALSE,0,Tablas!D364) -> 0 | D46: =+IF($B$1=FALSE,0,Tablas!E364) -> 0 | E46: =+IF($B$1=FALSE,0,Tablas!F364) -> 0 | F46: =+IF($B$1=FALSE,0,Tablas!G364) -> 0 | G46: =+IF($B$1=FALSE,0,Tablas!H364) -> 0
A47: Rider: Trasplante Organos | B47: =+IF($C$1=FALSE,0,Tablas!C365) -> 159 | C47: =+IF($C$1=FALSE,0,Tablas!D365) -> 159 | D47: =+IF($C$1=FALSE,0,Tablas!E365) -> 159 | E47: =+IF($C$1=FALSE,0,Tablas!F365) -> 159 | F47: =+IF($C$1=FALSE,0,Tablas!G365) -> 159 | G47: =+IF($C$1=FALSE,0,Tablas!H365) -> 159
A48: TOTAL PRIMA NETA | B48: =SUM(B43:B47) -> 3813.35 | C48: 3673.43 | D48: 3416.91 | E48: 2467.15 | F48: 1856.06 | G48: 1380.65
A49: Costo Administrativo Anual | B49: 75 | C49: 75 | D49: 75 | E49: 75 | F49: 75 | G49: 75
A50: IVA (12%) | B50: =SUM(B48:B49)*'INGRESO DE DATOS'!$S$19 -> 466.602 | C50: =SUM(C48:C49)*'INGRESO DE DATOS'!$S$19 -> 449.8116 | D50: =SUM(D48:D49)*'INGRESO DE DATOS'!$S$19 -> 419.0292 | E50: =SUM(E48:E49)*'INGRESO DE DATOS'!$S$19 -> 305.058 | F50: =SUM(F48:F49)*'INGRESO DE DATOS'!$S$19 -> 231.7272 | G50: =SUM(G48:G49)*'INGRESO DE DATOS'!$S$19 -> 174.678
A51: TOTAL (1ra Cuota) | B51: =SUM(B48:B50) -> 4354.952 | C51: =SUM(C48:C50) -> 4198.2416 | D51: =SUM(D48:D50) -> 3910.9392 | E51: 2847.208 | F51: 2162.7872 | G51: 1630.328
A52: TOTAL (2da Cuota) | B52: =B51-B49*'INGRESO DE DATOS'!$T$19 -> 4270.952 | C52: =C51-C49*'INGRESO DE DATOS'!$T$19 -> 4114.2416 | D52: =D51-D49*'INGRESO DE DATOS'!$T$19 -> 3826.9392 | E52: =E51-E49*'INGRESO DE DATOS'!$T$19 -> 2763.208 | F52: =F51-F49*'INGRESO DE DATOS'!$T$19 -> 2078.7872 | G52: =G51-G49*'INGRESO DE DATOS'!$T$19 -> 1546.328
A53: GRAN TOTAL | B53: =SUM(B51:B52) -> 8625.904 | C53: =SUM(C51:C52) -> 8312.4832 | D53: =SUM(D51:D52) -> 7737.8784 | E53: 5610.416 | F53: 4241.5744 | G53: 3176.656
A56: TARIFAS TRIMESTRALES
A57: Prima de Titular | B57: =VLOOKUP($B$19,Tablas!$A$373:$H$435,3,TRUE) -> 626.175 | C57: =VLOOKUP($B$19,Tablas!$A$373:$H$435,4,TRUE) -> 602.25 | D57: =VLOOKUP($B$19,Tablas!$A$373:$H$435,5,TRUE) -> 558.25 | E57: =VLOOKUP($B$19,Tablas!$A$373:$H$435,6,TRUE) -> 395.725 | F57: =VLOOKUP($B$19,Tablas!$A$373:$H$435,7,TRUE) -> 289.85 | G57: =VLOOKUP($B$19,Tablas!$A$373:$H$435,8,TRUE) -> 205.7
A58: Prima de Cónyuge | B58: =IF($B$17=1,0,(VLOOKUP($G$19,Tablas!$A$373:$H$435,3,TRUE))) -> 951.775 | C58: =IF($B$17=1,0,(VLOOKUP($G$19,Tablas!$A$373:$H$435,4,TRUE))) -> 915.2 | D58: =IF($B$17=1,0,(VLOOKUP($G$19,Tablas!$A$373:$H$435,5,TRUE))) -> 848.65 | E58: =IF($B$17=1,0,(VLOOKUP($G$19,Tablas!$A$373:$H$435,6,TRUE))) -> 600.875 | F58: =IF($B$17=1,0,(VLOOKUP($G$19,Tablas!$A$373:$H$435,7,TRUE))) -> 422.95 | G58: =IF($B$17=1,0,(VLOOKUP($G$19,Tablas!$A$373:$H$435,8,TRUE))) -> 295.625
A59: Primas Hijos | B59: =IF($G$17=0,0,(VLOOKUP($G$17,Tablas!$A$436:$H$438,3,TRUE))) -> 318.175 | C59: =IF($G$17=0,0,(VLOOKUP($G$17,Tablas!$A$436:$H$438,4,TRUE))) -> 306.075 | D59: =IF($G$17=0,0,(VLOOKUP($G$17,Tablas!$A$436:$H$438,5,TRUE))) -> 283.525 | E59: =IF($G$17=0,0,(VLOOKUP($G$17,Tablas!$A$436:$H$438,6,TRUE))) -> 201.025 | F59: =IF($G$17=0,0,(VLOOKUP($G$17,Tablas!$A$436:$H$438,7,TRUE))) -> 167.75 | G59: =IF($G$17=0,0,(VLOOKUP($G$17,Tablas!$A$436:$H$438,8,TRUE))) -> 132.55
A60: Rider: Complicaciones de Maternidad | B60: =+IF($B$1=FALSE,0,Tablas!C439) -> 0 | C60: =+IF($B$1=FALSE,0,Tablas!D439) -> 0 | D60: =+IF($B$1=FALSE,0,Tablas!E439) -> 0 | E60: =+IF($B$1=FALSE,0,Tablas!F439) -> 0 | F60: =+IF($B$1=FALSE,0,Tablas!G439) -> 0 | G60: =+IF($B$1=FALSE,0,Tablas!H439) -> 0
A61: Rider: Trasplante Organos | B61: =+IF($C$1=FALSE,0,Tablas!C440) -> 82.5 | C61: =+IF($C$1=FALSE,0,Tablas!D440) -> 82.5 | D61: =+IF($C$1=FALSE,0,Tablas!E440) -> 82.5 | E61: =+IF($C$1=FALSE,0,Tablas!F440) -> 82.5 | F61: =+IF($C$1=FALSE,0,Tablas!G440) -> 82.5 | G61: =+IF($C$1=FALSE,0,Tablas!H440) -> 82.5
A62: TOTAL PRIMA NETA | B62: =SUM(B57:B61) -> 1978.625 | C62: =SUM(C57:C61) -> 1906.025 | D62: 1772.925 | E62: 1280.125 | F62: 963.05 | G62: 716.375
A63: Costo Administrativo Anual | B63: 75 | C63: 75 | D63: 75 | E63: 75 | F63: 75 | G63: 75
A64: IVA(12%) | B64: =SUM(B62:B63)*'INGRESO DE DATOS'!$S$19 -> 246.435 | C64: =SUM(C62:C63)*'INGRESO DE DATOS'!$S$19 -> 237.723 | D64: =SUM(D62:D63)*'INGRESO DE DATOS'!$S$19 -> 221.751 | E64: =SUM(E62:E63)*'INGRESO DE DATOS'!$S$19 -> 162.615 | F64: =SUM(F62:F63)*'INGRESO DE DATOS'!$S$19 -> 124.566 | G64: =SUM(G62:G63)*'INGRESO DE DATOS'!$S$19 -> 94.965
A65: TOTAL (1ra Cuota) | B65: =SUM(B62:B64) -> 2300.06 | C65: =SUM(C62:C64) -> 2218.748 | D65: =SUM(D62:D64) -> 2069.676 | E65: 1517.74 | F65: 1162.616 | G65: 886.34
A66: TOTAL (2da a 4ta Cuota) | B66: =B65-B63*'INGRESO DE DATOS'!$T$19 -> 2216.06 | C66: =C65-C63*'INGRESO DE DATOS'!$T$19 -> 2134.748 | D66: =D65-D63*'INGRESO DE DATOS'!$T$19 -> 1985.676 | E66: =E65-E63*'INGRESO DE DATOS'!$T$19 -> 1433.74 | F66: =F65-F63*'INGRESO DE DATOS'!$T$19 -> 1078.616 | G66: =G65-G63*'INGRESO DE DATOS'!$T$19 -> 802.34
A67: GRAN TOTAL | B67: =B65+B66*3 -> 8948.24 | C67: =C65+C66*3 -> 8622.992 | D67: 8026.704 | E67: 5818.96 | F67: 4398.464 | G67: 3293.36
A71: Este presupuesto solamente tiene carácter informativo y en ningún momento expresa compromiso legal para suministrarle cobertura de seguro. La emisión de una póliza de seguro Bupa está sujeta a todas las evaluaciones de riesgo por parte de Bupa y a la recepción de todos los pagos de prima requeridos.

Sheet Bupa Classic Care
B1: FALSE | C1: FALSE | I1: RESUMEN DE BENEFICIOS | Q1: RESUMEN DE BENEFICIOS
B2: FALSE
A5: Cotización de Seguro Médico Internacional Bupa Classic Care Tarifas en US$ | Validas: 1 de enero de 2025 | G5: REGIÓN
G7: =IF('INGRESO DE DATOS'!W14="Guatemala","GUATEMALA",'INGRESO DE DATOS'!W14) -> GUATEMALA
A13: Nombre del asegurado principal | B13: =+'INGRESO DE DATOS'!$C$36 -> John Doe
A15: Broker/Agente | B15: =+'INGRESO DE DATOS'!$C$44 -> Agencia
A17: Número de Adultos en la Póliza | B17: =+'INGRESO DE DATOS'!$C$38 -> 2 | D17: Dependientes (menores de 24 años) | G17: =+'INGRESO DE DATOS'!$F$38 -> 2
D18: =IF('INGRESO DE DATOS'!$P$2=TRUE, "Cotización para dependiente de 24 años","") -> 
A19: Edad del Titular | B19: =+'INGRESO DE DATOS'!$C$40 -> 32 | D19: Edad del Cónyuge | G19: =+'INGRESO DE DATOS'!$F$40 -> 46
D23: Fecha de Cotización: | F23: =NOW() -> 2025-01-27T13:32:07.300
A27: DEdUCIBLES | B27: PLAN 1 | C27: PLAN 2 | D27: PLAN 3 | E27: PLAN 4 | F27: PLAN 5 | G27: PLAN 6
A28: Dentro del pais de residencia | B28: n/a | C28: 1000 | D28: 2000 | E28: 5000 | F28: 10000 | G28: 20000
A29: Fuera del pais de residencia | B29: n/a | C29: 2000 | D29: 3000 | E29: 5000 | F29: 10000 | G29: 20000
A32: TARIFAS ANUALES
A33: Prima de Titular | B33: n/a | C33: =VLOOKUP($B$19,Tablas!$A$452:$H$514,4,TRUE) -> 4033.25 | D33: =VLOOKUP($B$19,Tablas!$A$452:$H$514,5,TRUE) -> 3320.1 | E33: =VLOOKUP($B$19,Tablas!$A$452:$H$514,6,TRUE) -> 2147.95 | F33: =VLOOKUP($B$19,Tablas!$A$452:$H$514,7,TRUE) -> 1530 | G33: =VLOOKUP($B$19,Tablas!$A$452:$H$514,8,TRUE) -> 1088
A34: Prima de Cónyuge | B34: n/a | C34: =IF($B$17=1,0,(VLOOKUP($G$19,Tablas!$A$452:$H$514,4,TRUE))) -> 5802.95 | D34: =IF($B$17=1,0,(VLOOKUP($G$19,Tablas!$A$452:$H$514,5,TRUE))) -> 4964.85 | E34: =IF($B$17=1,0,(VLOOKUP($G$19,Tablas!$A$452:$H$514,6,TRUE))) -> 3263.15 | F34: =IF($B$17=1,0,(VLOOKUP($G$19,Tablas!$A$452:$H$514,7,TRUE))) -> 2236.35 | G34: =IF($B$17=1,0,(VLOOKUP($G$19,Tablas!$A$452:$H$514,8,TRUE))) -> 1561.45
A35: Primas Hijos | B35: n/a | C35: =IF($G$17=0,0,(VLOOKUP($G$17,Tablas!$A$515:$H$517,4,TRUE))) -> 2699.6 | D35: =IF($G$17=0,0,(VLOOKUP($G$17,Tablas!$A$515:$H$517,5,TRUE))) -> 1400.8 | E35: =IF($G$17=0,0,(VLOOKUP($G$17,Tablas!$A$515:$H$517,6,TRUE))) -> 1091.4 | F35: =IF($G$17=0,0,(VLOOKUP($G$17,Tablas!$A$515:$H$517,7,TRUE))) -> 770.1 | G35: =IF($G$17=0,0,(VLOOKUP($G$17,Tablas!$A$515:$H$517,8,TRUE))) -> 532.95
A36: Rider: Complicaciones de Maternidad | B36: n/a | C36: =+IF($B$1=FALSE,0,Tablas!D518) -> 0 | D36: =+IF($B$1=FALSE,0,Tablas!E518) -> 0 | E36: =+IF($B$1=FALSE,0,Tablas!F518) -> 0 | F36: =+IF($B$1=FALSE,0,Tablas!G518) -> 0 | G36: =+IF($B$1=FALSE,0,Tablas!H518) -> 0
A37: Rider: Trasplante Organos | B37: n/a | C37: =IF($C$1=FALSE,0,Tablas!D519) -> 0 | D37: =IF($C$1=FALSE,0,Tablas!E519) -> 0 | E37: =IF($C$1=FALSE,0,Tablas!F519) -> 0 | F37: =IF($C$1=FALSE,0,Tablas!G519) -> 0 | G37: =IF($C$1=FALSE,0,Tablas!H519) -> 0
A38: Rider: Eliminación de Deducible | B38: n/a | C38: =IF($B$2=FALSE,0,Tablas!D520) -> 0 | D38: =IF($B$2=FALSE,0,Tablas!E520) -> 0 | E38: =IF($B$2=FALSE,0,Tablas!F520) -> 0 | F38: =IF($B$2=FALSE,0,Tablas!G520) -> 0 | G38: =IF($B$2=FALSE,0,Tablas!H520) -> 0
A39: TOTAL PRIMA NETA | B39: n/a | C39: =SUM(C33:C38) -> 12535.8 | D39: 9685.75 | E39: 6502.5 | F39: 4536.45 | G39: 3182.4
A40: Costo Administrativo Annual | B40: n/a | C40: 75 | D40: 75 | E40: 75 | F40: 75 | G40: 75
A41: IVA (12%) | B41: n/a | C41: =SUM(C39:C40)*'INGRESO DE DATOS'!$S$19 -> 1513.296 | D41: =SUM(D39:D40)*'INGRESO DE DATOS'!$S$19 -> 1171.29 | E41: =SUM(E39:E40)*'INGRESO DE DATOS'!$S$19 -> 789.3 | F41: =SUM(F39:F40)*'INGRESO DE DATOS'!$S$19 -> 553.374 | G41: =SUM(G39:G40)*'INGRESO DE DATOS'!$S$19 -> 390.888
A42: GRAN TOTAL : | B42: n/a | C42: =SUM(C39:C41) -> 14124.096 | D42: =SUM(D39:D41) -> 10932.04 | E42: =SUM(E39:E41) -> 7366.8 | F42: =SUM(F39:F41) -> 5164.824 | G42: =SUM(G39:G41) -> 3648.288
A45: TARIFAS SEMESTRALES
A46: Prima de Titular | B46: n/a | C46: =VLOOKUP($B$19,Tablas!$A$526:$H$588,4,TRUE) -> 2137.6225 | D46: =VLOOKUP($B$19,Tablas!$A$526:$H$588,5,TRUE) -> 1759.653 | E46: =VLOOKUP($B$19,Tablas!$A$526:$H$588,6,TRUE) -> 1138.4135 | F46: =VLOOKUP($B$19,Tablas!$A$526:$H$588,7,TRUE) -> 810.9 | G46: =VLOOKUP($B$19,Tablas!$A$526:$H$588,8,TRUE) -> 576.64
A47: Prima de Cónyuge | B47: n/a | C47: =IF($B$17=1,0,(VLOOKUP($G$19,Tablas!$A$526:$H$588,4,TRUE))) -> 3075.5635 | D47: =IF($B$17=1,0,(VLOOKUP($G$19,Tablas!$A$526:$H$588,5,TRUE))) -> 2631.3705 | E47: =IF($B$17=1,0,(VLOOKUP($G$19,Tablas!$A$526:$H$588,6,TRUE))) -> 1729.4695 | F47: =IF($B$17=1,0,(VLOOKUP($G$19,Tablas!$A$526:$H$588,7,TRUE))) -> 1185.2655 | G47: =IF($B$17=1,0,(VLOOKUP($G$19,Tablas!$A$526:$H$588,8,TRUE))) -> 827.5685
A48: Primas Hijos | B48: n/a | C48: =IF($G$17=0,0,(VLOOKUP($G$17,Tablas!$A$589:$H$591,4,TRUE))) -> 1430.788 | D48: =IF($G$17=0,0,(VLOOKUP($G$17,Tablas!$A$589:$H$591,5,TRUE))) -> 742.424 | E48: =IF($G$17=0,0,(VLOOKUP($G$17,Tablas!$A$589:$H$591,6,TRUE))) -> 578.442 | F48: =IF($G$17=0,0,(VLOOKUP($G$17,Tablas!$A$589:$H$591,7,TRUE))) -> 408.153 | G48: =IF($G$17=0,0,(VLOOKUP($G$17,Tablas!$A$589:$H$591,8,TRUE))) -> 282.4635
A49: Rider: Complicaciones de Maternidad | B49: n/a | C49: =+IF($B$1=FALSE,0,Tablas!D592) -> 0 | D49: =+IF($B$1=FALSE,0,Tablas!E592) -> 0 | E49: =+IF($B$1=FALSE,0,Tablas!F592) -> 0 | F49: =+IF($B$1=FALSE,0,Tablas!G592) -> 0 | G49: =+IF($B$1=FALSE,0,Tablas!H592) -> 0
A50: Rider: Trasplante Organos | B50: n/a | C50: =IF($C$1=FALSE,0,Tablas!D593) -> 0 | D50: =IF($C$1=FALSE,0,Tablas!E593) -> 0 | E50: =IF($C$1=FALSE,0,Tablas!F593) -> 0 | F50: =IF($C$1=FALSE,0,Tablas!G593) -> 0 | G50: =IF($C$1=FALSE,0,Tablas!H593) -> 0
A51: Rider: Eliminación de Deducible | B51: n/a | C51: =IF($B$2=FALSE,0,Tablas!D594) -> 0 | D51: =IF($B$2=FALSE,0,Tablas!E594) -> 0 | E51: =IF($B$2=FALSE,0,Tablas!F594) -> 0 | F51: =IF($B$2=FALSE,0,Tablas!G594) -> 0 | G51: =IF($B$2=FALSE,0,Tablas!H594) -> 0
A52: TOTAL PRIMA NETA | B52: n/a | C52: =SUM(C46:C51) -> 6643.974 | D52: 5133.4475 | E52: 3446.325 | F52: 2404.3185 | G52: 1686.672
A53: Costo Administrativo Anual | B53: n/a | C53: 75 | D53: 75 | E53: 75 | F53: 75 | G53: 75
A54: IVA (12%) | B54: n/a | C54: =SUM(C52:C53)*'INGRESO DE DATOS'!$S$19 -> 806.27688 | D54: =SUM(D52:D53)*'INGRESO DE DATOS'!$S$19 -> 625.0137 | E54: =SUM(E52:E53)*'INGRESO DE DATOS'!$S$19 -> 422.559 | F54: =SUM(F52:F53)*'INGRESO DE DATOS'!$S$19 -> 297.51822 | G54: =SUM(G52:G53)*'INGRESO DE DATOS'!$S$19 -> 211.40064
A55: TOTAL (1ra Cuota) | B55: n/a | C55: =SUM(C52:C54) -> 7525.25088 | D55: =SUM(D52:D54) -> 5833.4612 | E55: 3943.884 | F55: 2776.83672 | G55: 1973.07264
A56: TOTAL (2da Cuota) | B56: n/a | C56: =C55-C53*'INGRESO DE DATOS'!$T$19 -> 7441.25088 | D56: =D55-D53*'INGRESO DE DATOS'!$T$19 -> 5749.4612 | E56: =E55-E53*'INGRESO DE DATOS'!$T$19 -> 3859.884 | F56: =F55-F53*'INGRESO DE DATOS'!$T$19 -> 2692.83672 | G56: =G55-G53*'INGRESO DE DATOS'!$T$19 -> 1889.07264
A57: GRAN TOTAL | B57: n/a | C57: =SUM(C55:C56) -> 14966.50176 | D57: =SUM(D55:D56) -> 11582.9224 | E57: 7803.768 | F57: 5469.67344 | G57: 3862.14528
A60: TARIFAS TRIMESTRALES
A61: Prima de Titular | B61: n/a | C61: =VLOOKUP($B$19,Tablas!$A$600:$H$662,4,TRUE) -> 1109.14375 | D61: =VLOOKUP($B$19,Tablas!$A$600:$H$662,5,TRUE) -> 913.0275 | E61: =VLOOKUP($B$19,Tablas!$A$600:$H$662,6,TRUE) -> 590.68625 | F61: =VLOOKUP($B$19,Tablas!$A$600:$H$662,7,TRUE) -> 420.75 | G61: =VLOOKUP($B$19,Tablas!$A$600:$H$662,8,TRUE) -> 299.2
A62: Prima de Cónyuge | B62: n/a | C62: =IF($B$17=1,0,(VLOOKUP($G$19,Tablas!$A$600:$H$662,4,TRUE))) -> 1595.81125 | D62: =IF($B$17=1,0,(VLOOKUP($G$19,Tablas!$A$600:$H$662,5,TRUE))) -> 1365.33375 | E62: =IF($B$17=1,0,(VLOOKUP($G$19,Tablas!$A$600:$H$662,6,TRUE))) -> 897.36625 | F62: =IF($B$17=1,0,(VLOOKUP($G$19,Tablas!$A$600:$H$662,7,TRUE))) -> 614.99625 | G62: =IF($B$17=1,0,(VLOOKUP($G$19,Tablas!$A$600:$H$662,8,TRUE))) -> 429.39875
A63: Primas Hijos | B63: n/a | C63: =IF($G$17=0,0,(VLOOKUP($G$17,Tablas!$A$663:$H$665,4,TRUE))) -> 742.39 | D63: =IF($G$17=0,0,(VLOOKUP($G$17,Tablas!$A$663:$H$665,5,TRUE))) -> 385.22 | E63: =IF($G$17=0,0,(VLOOKUP($G$17,Tablas!$A$663:$H$665,6,TRUE))) -> 300.135 | F63: =IF($G$17=0,0,(VLOOKUP($G$17,Tablas!$A$663:$H$665,7,TRUE))) -> 211.7775 | G63: =IF($G$17=0,0,(VLOOKUP($G$17,Tablas!$A$663:$H$665,8,TRUE))) -> 146.56125
A64: Rider: Complicaciones de Maternidad | B64: n/a | C64: =+IF($B$1=FALSE,0,Tablas!D666) -> 0 | D64: =+IF($B$1=FALSE,0,Tablas!E666) -> 0 | E64: =+IF($B$1=FALSE,0,Tablas!F666) -> 0 | F64: =+IF($B$1=FALSE,0,Tablas!G666) -> 0 | G64: =+IF($B$1=FALSE,0,Tablas!H666) -> 0
A65: Rider: Trasplante Organos | B65: n/a | C65: =IF($C$1=FALSE,0,Tablas!D667) -> 0 | D65: =IF($C$1=FALSE,0,Tablas!E667) -> 0 | E65: =IF($C$1=FALSE,0,Tablas!F667) -> 0 | F65: =IF($C$1=FALSE,0,Tablas!G667) -> 0 | G65: =IF($C$1=FALSE,0,Tablas!H667) -> 0
A66: Rider: Eliminación de Deducible | B66: n/a | C66: =IF($B$2=FALSE,0,Tablas!D668) -> 0 | D66: =IF($B$2=FALSE,0,Tablas!E668) -> 0 | E66: =IF($B$2=FALSE,0,Tablas!F668) -> 0 | F66: =IF($B$2=FALSE,0,Tablas!G668) -> 0 | G66: =IF($B$2=FALSE,0,Tablas!H668) -> 0
A67: TOTAL PRIMA NETA | B67: n/a | C67: =SUM(C61:C66) -> 3447.345 | D67: 2663.58125 | E67: 1788.1875 | F67: 1247.52375 | G67: 875.16
A68: Costo Administrativo Anual | B68: n/a | C68: 75 | D68: 75 | E68: 75 | F68: 75 | G68: 75
A69: IVA (12%) | B69: n/a | C69: =SUM(C67:C68)*'INGRESO DE DATOS'!$S$19 -> 422.6814 | D69: =SUM(D67:D68)*'INGRESO DE DATOS'!$S$19 -> 328.62975 | E69: =SUM(E67:E68)*'INGRESO DE DATOS'!$S$19 -> 223.5825 | F69: =SUM(F67:F68)*'INGRESO DE DATOS'!$S$19 -> 158.70285 | G69: =SUM(G67:G68)*'INGRESO DE DATOS'!$S$19 -> 114.0192
A70: TOTAL (1ra Cuota) | B70: n/a | C70: =SUM(C67:C69) -> 3945.0264 | D70: =SUM(D67:D69) -> 3067.211 | E70: 2086.77 | F70: 1481.2266 | G70: 1064.1792
A71: TOTAL (2da a 4ta Cuota) | B71: n/a | C71: =C70-C68*'INGRESO DE DATOS'!$T$19 -> 3861.0264 | D71: =D70-D68*'INGRESO DE DATOS'!$T$19 -> 2983.211 | E71: =E70-E68*'INGRESO DE DATOS'!$T$19 -> 2002.77 | F71: =F70-F68*'INGRESO DE DATOS'!$T$19 -> 1397.2266 | G71: =G70-G68*'INGRESO DE DATOS'!$T$19 -> 980.1792
A72: GRAN TOTAL | B72: n/a | C72: =C70+C71*3 -> 15528.1056 | D72: =D70+D71*3 -> 12016.844 | E72: =E70+E71*3 -> 8095.08 | F72: 5672.9064 | G72: 4004.7168
A75: Este presupuesto solamente tiene carácter informativo y en ningún momento expresa compromiso legal para suministrarle cobertura de seguro. La emisión de una póliza de seguro Bupa está sujeta a todas las evaluaciones de riesgo por parte de Bupa y a la recepción de todos los pagos de prima requeridos.

Sheet Resumen de Tarifas
A5: Cotización de Seguro Médico Internacional Resumen de Tarifas Tarifas en US$ | Validas: 1 de enero de 2025 | I5: REGIÓN
I7: =IF('INGRESO DE DATOS'!W14="Guatemala","GUATEMALA",'INGRESO DE DATOS'!W14) -> GUATEMALA
A13: Nombre del asegurado principal | B13: =+'INGRESO DE DATOS'!$C$36 -> John Doe
A15: Broker/Agente | B15: =+'INGRESO DE DATOS'!$C$44 -> Agencia
A17: Número de Adultos en la Póliza | B17: =+'INGRESO DE DATOS'!$C$38 -> 2 | F17: Dependientes (menores de 24 años) | I17: =+'INGRESO DE DATOS'!$F$38 -> 2
F18: =IF('INGRESO DE DATOS'!$P$2=TRUE, "Cotización para dependiente de 24 años","") -> 
A19: Edad del Titular | B19: =+'INGRESO DE DATOS'!$C$40 -> 32 | F19: Edad del Cónyuge | I19: =+'INGRESO DE DATOS'!$F$40 -> 46
A22: DEDUCIBLES | D22: PLAN 1 | E22: PLAN 2 | F22: PLAN 3 | G22: PLAN 4 | H22: PLAN 5 | I22: PLAN 6
A23: Dentro del pais de residencia | D23: n/a | E23: 1000 | F23: 2000 | G23: 5000 | H23: 10000 | I23: 20000
A24: Fuera del pais de residencia | D24: n/a | E24: 2000 | F24: 3000 | G24: 5000 | H24: 10000 | I24: 20000
A26: PRODUCTOS
A27: Bupa Complete Care
A28: Tarifas Anuales | D28: n/a | E28: ='Bupa Complete Care'!H42 -> 55049.12 | F28: ='Bupa Premium Care'!I46 -> 26746.72 | G28: ='Bupa Premium Care'!J46 -> 20883.52 | H28: ='Bupa Premium Care'!K46 -> 16943.36 | I28: ='Bupa Premium Care'!L46 -> 13508.32
A29: Tarifas Semestrales | D29: n/a | E29: ='Bupa Complete Care'!H56 -> 58347.0272 | F29: ='Bupa Complete Care'!I56 -> 42085.9488 | G29: ='Bupa Complete Care'!J56 -> 31453.3856 | H29: ='Bupa Complete Care'!K56 -> 23864.8032 | I29: ='Bupa Complete Care'!L56 -> 18256.4704
A30: Tarifas Trimestrales | D30: n/a | E30: ='Bupa Complete Care'!H69 -> 60545.632 | F30: ='Bupa Complete Care'!I69 -> 43670.928 | G30: ='Bupa Complete Care'!J69 -> 32637.136 | H30: ='Bupa Complete Care'!K69 -> 24762.192 | I30: ='Bupa Complete Care'!L69 -> 18942.224
A31: Bupa Premium Care
A32: Tarifas Anuales | D32: n/a | E32: ='Bupa Premium Care'!H46 -> 34384 | F32: ='Bupa Premium Care'!I46 -> 26746.72 | G32: ='Bupa Premium Care'!J46 -> 20883.52 | H32: ='Bupa Premium Care'!K46 -> 16943.36 | I32: ='Bupa Premium Care'!L46 -> 13508.32
A33: Tarifas Semestrales | D33: n/a | E33: ='Bupa Premium Care'!H61 -> 36442 | F33: ='Bupa Premium Care'!I61 -> 28346.4832 | G33: ='Bupa Premium Care'!J61 -> 22131.4912 | H33: ='Bupa Premium Care'!K61 -> 17954.9216 | I33: ='Bupa Premium Care'!L61 -> 14313.7792
A34: Tarifas Trimestrales | D34: n/a | E34: ='Bupa Premium Care'!H76 -> 37814 | F34: ='Bupa Premium Care'!I76 -> 29412.992 | G34: ='Bupa Premium Care'!J76 -> 22963.472 | H34: ='Bupa Premium Care'!K76 -> 18629.296 | I34: ='Bupa Premium Care'!L76 -> 14850.752
A35: Bupa Secure Care
A36: Tarifas Anuales | D36: n/a | E36: ='Bupa Secure Care'!C39 -> 22228.024 | F36: ='Bupa Secure Care'!D39 -> 16223.76 | G36: ='Bupa Secure Care'!E39 -> 12755.848 | H36: ='Bupa Secure Care'!F39 -> 10537.744 | I36: ='Bupa Secure Care'!G39 -> 7955.724
A37: Tarifas Semestrales | D37: n/a | E37: ='Bupa Secure Care'!C53 -> 34749.0528 | F37: ='Bupa Secure Care'!D53 -> 27197.2736 | G37: ='Bupa Secure Care'!E53 -> 20477.7216 | H37: ='Bupa Secure Care'!F53 -> 17335.2032 | I37: ='Bupa Secure Care'!G53 -> 13162.1952
A38: Tarifas Trimestrales | D38: n/a | E38: ='Bupa Secure Care'!C67 -> 36057.168 | F38: ='Bupa Secure Care'!D67 -> 28220.416 | G38: ='Bupa Secure Care'!E67 -> 21247.296 | H38: ='Bupa Secure Care'!F67 -> 17986.192 | I38: ='Bupa Secure Care'!G67 -> 13655.712
A39: Bupa Essential Care
A40: Tarifas Anuales | D40: n/a | E40: ='Bupa Essential Care'!C39 -> 7846.72 | F40: ='Bupa Essential Care'!D39 -> 7304.64 | G40: ='Bupa Essential Care'!E39 -> 5297.6 | H40: ='Bupa Essential Care'!F39 -> 4006.24 | I40: ='Bupa Essential Care'!G39 -> 3001.6
A41: Tarifas Semestrales | D41: n/a | E41: ='Bupa Essential Care'!C53 -> 8312.4832 | F41: ='Bupa Essential Care'!D53 -> 7737.8784 | G41: ='Bupa Essential Care'!E53 -> 5610.416 | H41: ='Bupa Essential Care'!F53 -> 4241.5744 | I41: ='Bupa Essential Care'!G53 -> 3176.656
A42: Tarifas Trimestrales | D42: n/a | E42: ='Bupa Essential Care'!C67 -> 8622.992 | F42: ='Bupa Essential Care'!D67 -> 8026.704 | G42: ='Bupa Essential Care'!E67 -> 5818.96 | H42: ='Bupa Essential Care'!F67 -> 4398.464 | I42: ='Bupa Essential Care'!G67 -> 3293.36
A43: Bupa Classic Care
A44: Tarifas Anuales | D44: n/a | E44: ='Bupa Classic Care'!C42 -> 14124.096 | F44: ='Bupa Classic Care'!D42 -> 10932.04 | G44: ='Bupa Classic Care'!E42 -> 7366.8 | H44: ='Bupa Classic Care'!F42 -> 5164.824 | I44: ='Bupa Classic Care'!G42 -> 3648.288
A45: Tarifas Semestrales | D45: n/a | E45: ='Bupa Classic Care'!C57 -> 14966.50176 | F45: ='Bupa Classic Care'!D57 -> 11582.9224 | G45: ='Bupa Classic Care'!E57 -> 7803.768 | H45: ='Bupa Classic Care'!F57 -> 5469.67344 | I45: ='Bupa Classic Care'!G57 -> 3862.14528
A46: Tarifas Trimestrales | D46: n/a | E46: ='Bupa Classic Care'!C72 -> 15528.1056 | F46: ='Bupa Classic Care'!D72 -> 12016.844 | G46: ='Bupa Classic Care'!E72 -> 8095.08 | H46: ='Bupa Classic Care'!F72 -> 5672.9064 | I46: ='Bupa Classic Care'!G72 -> 4004.7168

Sheet Comparacion de Beneficios (hidden)
A1: 2023 BUPA CARE COMPARACION DE BENEFICIOS

Sheet Tablas (hidden)
L1: Complete | M1: Premium | N1: Secure | O1: Essential | P1: Classic
B2: REGIÓN | C2: ='INGRESO DE DATOS'!W14 -> Guatemala | E2: FACTOR SEMESTRAL : | G2: 0.53 | I2: TOTAL DISCOUNT | K2: ='INGRESO DE DATOS'!O42 -> 1 | L2: ='INGRESO DE DATOS'!P42 -> 1 | M2: ='INGRESO DE DATOS'!Q42 -> 1 | N2: ='INGRESO DE DATOS'!R42 -> 1 | O2: ='INGRESO DE DATOS'!S42 -> 1 | P2: ='INGRESO DE DATOS'!T42 -> 0.85 | T2: Impuesto (14.94%) | V2: =14.94/100+1 -> 1.1494
E3: FACTOR TRIMESTRAL | G3: 0.275
A6: BUPA COMPLETE CARE
A7: TARIFAS ANUALES
A9: EDAD | C9: CW1 | D9: CW2 | E9: CW3 | F9: CW4 | G9: CW5 | H9: CW6
A10: 18 | B10: 18-24 | D10: =R10 -> 15148 | E10: =S10 -> 10375 | F10: 7283 | G10: 5028 | H10: 3843 | L10: =Guatemala!D9 -> 15148 | M10: =Guatemala!E9 -> 10375 | N10: =Guatemala!F9 -> 7283 | O10: =Guatemala!G9 -> 5028 | P10: =Guatemala!H9 -> 3843 | R10: =L10*$L$2 -> 15148 | S10: =M10*$L$2 -> 10375 | T10: 7283 | U10: 5028 | V10: 3843
A11: 25 | B11: 25-29 | D11: =R11 -> 15870 | E11: =S11 -> 11520 | F11: =T11 -> 8093 | G11: =U11 -> 5515 | H11: =V11 -> 4238 | L11: =Guatemala!D10 -> 15870 | M11: =Guatemala!E10 -> 11520 | N11: =Guatemala!F10 -> 8093 | O11: =Guatemala!G10 -> 5515 | P11: =Guatemala!H10 -> 4238 | R11: =L11*$L$2 -> 15870 | S11: =M11*$L$2 -> 11520 | T11: =N11*$L$2 -> 8093 | U11: =O11*$L$2 -> 5515 | V11: =P11*$L$2 -> 4238
A12: 30 | B12: 30-34 | D12: 16601 | E12: 12344 | F12: 9004 | G12: 6703 | H12: 5127 | L12: =Guatemala!D11 -> 16601 | M12: =Guatemala!E11 -> 12344 | N12: =Guatemala!F11 -> 9004 | O12: =Guatemala!G11 -> 6703 | P12: =Guatemala!H11 -> 5127 | R12: 16601 | S12: 12344 | T12: 9004 | U12: 6703 | V12: 5127
A13: 35 | B13: 35-39 | D13: 18573 | E13: 13800 | F13: 10111 | G13: 7487 | H13: 5717 | L13: =Guatemala!D12 -> 18573 | M13: =Guatemala!E12 -> 13800 | N13: =Guatemala!F12 -> 10111 | O13: =Guatemala!G12 -> 7487 | P13: =Guatemala!H12 -> 5717 | R13: 18573 | S13: 13800 | T13: 10111 | U13: 7487 | V13: 5717
A14: 40 | B14: 40-44 | D14: 21574 | E14: 15148 | F14: 11226 | G14: 8274 | H14: 6304 | L14: =Guatemala!D13 -> 21574 | M14: =Guatemala!E13 -> 15148 | N14: =Guatemala!F13 -> 11226 | O14: =Guatemala!G13 -> 8274 | P14: =Guatemala!H13 -> 6304 | R14: 21574 | S14: 15148 | T14: 11226 | U14: 8274 | V14: 6304
A15: 45 | B15: 45-49 | D15: 24069 | E15: 16911 | F15: 12536 | G15: 9260 | H15: 7093 | L15: =Guatemala!D14 -> 24069 | M15: =Guatemala!E14 -> 16911 | N15: =Guatemala!F14 -> 12536 | O15: =Guatemala!G14 -> 9260 | P15: =Guatemala!H14 -> 7093 | R15: 24069 | S15: 16911 | T15: 12536 | U15: 9260 | V15: 7093
A16: 50 | B16: 50-54 | D16: 31429 | E16: 22305 | F16: 16482 | G16: 13197 | H16: 10148 | L16: =Guatemala!D15 -> 31429 | M16: =Guatemala!E15 -> 22305 | N16: =Guatemala!F15 -> 16482 | O16: =Guatemala!G15 -> 13197 | P16: =Guatemala!H15 -> 10148 | R16: 31429 | S16: 22305 | T16: 16482 | U16: 13197 | V16: 10148
A17: 55 | B17: 55-59 | D17: 33502 | E17: 23754 | F17: 17593 | G17: 14081 | H17: 10736 | L17: =Guatemala!D16 -> 33502 | M17: =Guatemala!E16 -> 23754 | N17: =Guatemala!F16 -> 17593 | O17: =Guatemala!G16 -> 14081 | P17: =Guatemala!H16 -> 10736 | R17: 33502 | S17: 23754 | T17: 17593 | U17: 14081 | V17: 10736
A18: 60 | B18: 60 | D18: 36409 | E18: 25832 | F18: 20018 | G18: 16740 | H18: 13490 | L18: =Guatemala!D17 -> 36409 | M18: =Guatemala!E17 -> 25832 | N18: =Guatemala!F17 -> 20018 | O18: =Guatemala!G17 -> 16740 | P18: =Guatemala!H17 -> 13490 | R18: 36409 | S18: 25832 | T18: 20018 | U18: 16740 | V18: 13490
A19: 61 | B19: 61 | D19: 39104 | E19: 27702 | F19: 21433 | G19: 18021 | H19: 14477 | L19: =Guatemala!D18 -> 39104 | M19: =Guatemala!E18 -> 27702 | N19: =Guatemala!F18 -> 21433 | O19: =Guatemala!G18 -> 18021 | P19: =Guatemala!H18 -> 14477 | R19: 39104 | S19: 27702 | T19: 21433 | U19: 18021 | V19: 14477
A20: 62 | B20: 62 | D20: 42838 | E20: 30291 | F20: 23458 | G20: 19690 | H20: 15852 | L20: =Guatemala!D19 -> 42838 | M20: =Guatemala!E19 -> 30291 | N20: =Guatemala!F19 -> 23458 | O20: =Guatemala!G19 -> 19690 | P20: =Guatemala!H19 -> 15852 | R20: 42838 | S20: 30291 | T20: 23458 | U20: 19690 | V20: 15852
A21: 63 | B21: 63 | D21: 45535 | E21: 32259 | F21: 24974 | G21: 20975 | H21: 16837 | L21: =Guatemala!D20 -> 45535 | M21: =Guatemala!E20 -> 32259 | N21: =Guatemala!F20 -> 24974 | O21: =Guatemala!G20 -> 20975 | P21: =Guatemala!H20 -> 16837 | R21: 45535 | S21: 32259 | T21: 24974 | U21: 20975 | V21: 16837
A22: 64 | B22: 64 | D22: 49269 | E22: 34854 | F22: 26997 | G22: 22648 | H22: 18217 | L22: =Guatemala!D21 -> 49269 | M22: =Guatemala!E21 -> 34854 | N22: =Guatemala!F21 -> 26997 | O22: =Guatemala!G21 -> 22648 | P22: =Guatemala!H21 -> 18217 | R22: 49269 | S22: 34854 | T22: 26997 | U22: 22648 | V22: 18217
A23: 65 | B23: 65 | D23: 64415 | E23: 45535 | F23: 34171 | G23: 30228 | H23: 25696 | L23: =Guatemala!D22 -> 64415 | M23: =Guatemala!E22 -> 45535 | N23: =Guatemala!F22 -> 34171 | O23: =Guatemala!G22 -> 30228 | P23: =Guatemala!H22 -> 25696 | R23: 64415 | S23: 45535 | T23: 34171 | U23: 30228 | V23: 25696
A24: 66 | B24: 66 | D24: 74888 | E24: 52902 | F24: 39727 | G24: 35152 | H24: 29830 | L24: =Guatemala!D23 -> 74888 | M24: =Guatemala!E23 -> 52902 | N24: =Guatemala!F23 -> 39727 | O24: =Guatemala!G23 -> 35152 | P24: =Guatemala!H23 -> 29830 | R24: 74888 | S24: 52902 | T24: 39727 | U24: 35152 | V24: 29830
A25: 67 | B25: 67 | D25: 81733 | E25: 57777 | F25: 43365 | G25: 38398 | H25: 32590 | L25: =Guatemala!D24 -> 81733 | M25: =Guatemala!E24 -> 57777 | N25: =Guatemala!F24 -> 43365 | O25: =Guatemala!G24 -> 38398 | P25: =Guatemala!H24 -> 32590 | R25: 81733 | S25: 57777 | T25: 43365 | U25: 38398 | V25: 32590
A26: 68 | B26: 68 | D26: 90548 | E26: 63996 | F26: 48016 | G26: 42531 | H26: 36134 | L26: =Guatemala!D25 -> 90548 | M26: =Guatemala!E25 -> 63996 | N26: =Guatemala!F25 -> 48016 | O26: =Guatemala!G25 -> 42531 | P26: =Guatemala!H25 -> 36134 | R26: 90548 | S26: 63996 | T26: 48016 | U26: 42531 | V26: 36134
A27: 69 | B27: 69 | D27: 99573 | E27: 70327 | F27: 52870 | G27: 46765 | H27: 39673 | L27: =Guatemala!D26 -> 99573 | M27: =Guatemala!E26 -> 70327 | N27: =Guatemala!F26 -> 52870 | O27: =Guatemala!G26 -> 46765 | P27: =Guatemala!H26 -> 39673 | R27: 99573 | S27: 70327 | T27: 52870 | U27: 46765 | V27: 39673
A28: 70 | B28: 70 | D28: 122596 | E28: 85671 | F28: 62165 | G28: 54444 | H28: 46666 | L28: =Guatemala!D27 -> 122596 | M28: =Guatemala!E27 -> 85671 | N28: =Guatemala!F27 -> 62165 | O28: =Guatemala!G27 -> 54444 | P28: =Guatemala!H27 -> 46666 | R28: 122596 | S28: 85671 | T28: 62165 | U28: 54444 | V28: 46666
A29: 71 | B29: 71 | D29: 127368 | E29: 88996 | F29: 64597 | G29: 56611 | H29: 48537 | L29: =Guatemala!D28 -> 127368 | M29: =Guatemala!E28 -> 88996 | N29: =Guatemala!F28 -> 64597 | O29: =Guatemala!G28 -> 56611 | P29: =Guatemala!H28 -> 48537 | R29: 127368 | S29: 88996 | T29: 64597 | U29: 56611 | V29: 48537
A30: 72 | B30: 72 | D30: 130998 | E30: 91586 | F30: 66413 | G30: 58183 | H30: 49916 | L30: =Guatemala!D29 -> 130998 | M30: =Guatemala!E29 -> 91586 | N30: =Guatemala!F29 -> 66413 | O30: =Guatemala!G29 -> 58183 | P30: =Guatemala!H29 -> 49916 | R30: 130998 | S30: 91586 | T30: 66413 | U30: 58183 | V30: 49916
A31: 73 | B31: 73 | D31: 135770 | E31: 94909 | F31: 68844 | G31: 60347 | H31: 51785 | L31: =Guatemala!D30 -> 135770 | M31: =Guatemala!E30 -> 94909 | N31: =Guatemala!F30 -> 68844 | O31: =Guatemala!G30 -> 60347 | P31: =Guatemala!H30 -> 51785 | R31: 135770 | S31: 94909 | T31: 68844 | U31: 60347 | V31: 51785
A32: 74 | B32: 74 | D32: 138260 | E32: 96565 | F32: 70156 | G32: 61432 | H32: 52673 | L32: =Guatemala!D31 -> 138260 | M32: =Guatemala!E31 -> 96565 | N32: =Guatemala!F31 -> 70156 | O32: =Guatemala!G31 -> 61432 | P32: =Guatemala!H31 -> 52673 | R32: 138260 | S32: 96565 | T32: 70156 | U32: 61432 | V32: 52673
A33: 75 | B33: 75+ | D33: 144273 | E33: 100814 | F33: 73183 | G33: 64092 | H33: 54934 | L33: =Guatemala!D32 -> 144273 | M33: =Guatemala!E32 -> 100814 | N33: =Guatemala!F32 -> 73183 | O33: =Guatemala!G32 -> 64092 | P33: =Guatemala!H32 -> 54934 | R33: 144273 | S33: 100814 | T33: 73183 | U33: 64092 | V33: 54934
A34: 1 | B34: 1 Child | D34: 5296 | E34: 3842 | F34: 2938 | G34: 2466 | H34: 1775 | L34: =Guatemala!D33 -> 5296 | M34: =Guatemala!E33 -> 3842 | N34: =Guatemala!F33 -> 2938 | O34: =Guatemala!G33 -> 2466 | P34: =Guatemala!H33 -> 1775 | R34: 5296 | S34: 3842 | T34: 2938 | U34: 2466 | V34: 1775
A35: 2 | B35: 2 Children | D35: 8406 | E35: 6124 | F35: 4658 | G35: 3843 | H35: 2862 | L35: =Guatemala!D34 -> 8406 | M35: =Guatemala!E34 -> 6124 | N35: =Guatemala!F34 -> 4658 | O35: =Guatemala!G34 -> 3843 | P35: =Guatemala!H34 -> 2862 | R35: 8406 | S35: 6124 | T35: 4658 | U35: 3843 | V35: 2862
A36: 3 | B36: 3+ Children | D36: 12239 | E36: 8924 | F36: 6881 | G36: 5613 | H36: 4144 | L36: =Guatemala!D35 -> 12239 | M36: =Guatemala!E35 -> 8924 | N36: =Guatemala!F35 -> 6881 | O36: =Guatemala!G35 -> 5613 | P36: =Guatemala!H35 -> 4144 | R36: 12239 | S36: 8924 | T36: 6881 | U36: 5613 | V36: 4144
A37: 1 | B37: Rider Comp. Maternidad | D37: =L37 -> 0 | E37: =M37 -> 0 | F37: =N37 -> 225 | G37: =O37 -> 225 | H37: =P37 -> 225 | L37: 0 | M37: 0 | N37: 225 | O37: 225 | P37: 225
A38: 1 | B38: Transplante de organos | D38: 0 | E38: 0 | F38: 0 | G38: 0 | H38: 0 | L38: 0 | M38: 0 | N38: 0 | O38: 0 | P38: 0
D39: 0 | E39: 0 | F39: 0 | G39: 0 | H39: 0
A42: TARIFAS SEMESTRALES
A44: EDAD | C44: CW1 | D44: CW2 | E44: CW3 | F44: CW4 | G44: CW5 | H44: CW6
A45: 18 | B45: 18-24 | D45: =D10*$G$2 -> 8028.44 | E45: =E10*$G$2 -> 5498.75 | F45: 3859.99 | G45: 2664.84 | H45: =H10*$G$2 -> 2036.79
A46: 25 | B46: 25-29 | D46: =D11*$G$2 -> 8411.1 | E46: 6105.6 | F46: 4289.29 | G46: 2922.95 | H46: 2246.14
A47: 30 | B47: 30-34 | D47: =D12*$G$2 -> 8798.53 | E47: 6542.32 | F47: 4772.12 | G47: 3552.59 | H47: 2717.31
A48: 35 | B48: 35-39 | D48: =D13*$G$2 -> 9843.69 | E48: 7314 | F48: 5358.83 | G48: 3968.11 | H48: 3030.01
A49: 40 | B49: 40-44 | D49: =D14*$G$2 -> 11434.22 | E49: 8028.44 | F49: 5949.78 | G49: 4385.22 | H49: 3341.12
A50: 45 | B50: 45-49 | D50: =D15*$G$2 -> 12756.57 | E50: 8962.83 | F50: 6644.08 | G50: 4907.8 | H50: 3759.29
A51: 50 | B51: 50-54 | D51: =D16*$G$2 -> 16657.37 | E51: 11821.65 | F51: 8735.46 | G51: 6994.41 | H51: 5378.44
A52: 55 | B52: 55-59 | D52: =D17*$G$2 -> 17756.06 | E52: 12589.62 | F52: 9324.29 | G52: 7462.93 | H52: 5690.08
A53: 60 | B53: 60 | D53: =D18*$G$2 -> 19296.77 | E53: 13690.96 | F53: 10609.54 | G53: 8872.2 | H53: 7149.7
A54: 61 | B54: 61 | D54: =D19*$G$2 -> 20725.12 | E54: 14682.06 | F54: 11359.49 | G54: 9551.13 | H54: 7672.81
A55: 62 | B55: 62 | D55: =D20*$G$2 -> 22704.14 | E55: 16054.23 | F55: 12432.74 | G55: 10435.7 | H55: 8401.56
A56: 63 | B56: 63 | D56: =D21*$G$2 -> 24133.55 | E56: 17097.27 | F56: 13236.22 | G56: 11116.75 | H56: 8923.61
A57: 64 | B57: 64 | D57: =D22*$G$2 -> 26112.57 | E57: 18472.62 | F57: 14308.41 | G57: 12003.44 | H57: 9655.01
A58: 65 | B58: 65 | D58: =D23*$G$2 -> 34139.95 | E58: 24133.55 | F58: 18110.63 | G58: 16020.84 | H58: 13618.88
A59: 66 | B59: 66 | D59: =D24*$G$2 -> 39690.64 | E59: 28038.06 | F59: 21055.31 | G59: 18630.56 | H59: 15809.9
A60: 67 | B60: 67 | D60: =D25*$G$2 -> 43318.49 | E60: 30621.81 | F60: 22983.45 | G60: 20350.94 | H60: 17272.7
A61: 68 | B61: 68 | D61: =D26*$G$2 -> 47990.44 | E61: 33917.88 | F61: 25448.48 | G61: 22541.43 | H61: 19151.02
A62: 69 | B62: 69 | D62: =D27*$G$2 -> 52773.69 | E62: 37273.31 | F62: 28021.1 | G62: 24785.45 | H62: 21026.69
A63: 70 | B63: 70 | D63: =D28*$G$2 -> 64975.88 | E63: 45405.63 | F63: 32947.45 | G63: 28855.32 | H63: 24732.98
A64: 71 | B64: 71 | D64: =D29*$G$2 -> 67505.04 | E64: 47167.88 | F64: 34236.41 | G64: 30003.83 | H64: 25724.61
A65: 72 | B65: 72 | D65: =D30*$G$2 -> 69428.94 | E65: 48540.58 | F65: 35198.89 | G65: 30836.99 | H65: 26455.48
A66: 73 | B66: 73 | D66: =D31*$G$2 -> 71958.1 | E66: 50301.77 | F66: 36487.32 | G66: 31983.91 | H66: 27446.05
A67: 74 | B67: 74 | D67: =D32*$G$2 -> 73277.8 | E67: 51179.45 | F67: 37182.68 | G67: 32558.96 | H67: 27916.69
A68: 75 | B68: 75+ | D68: =D33*$G$2 -> 76464.69 | E68: 53431.42 | F68: 38786.99 | G68: 33968.76 | H68: 29115.02
A69: 1 | B69: 1 Child | D69: =D34*$G$2 -> 2806.88 | E69: 2036.26 | F69: 1557.14 | G69: 1306.98 | H69: 940.75
A70: 2 | B70: 2 Children | D70: =D35*$G$2 -> 4455.18 | E70: 3245.72 | F70: 2468.74 | G70: 2036.79 | H70: 1516.86
A71: 3 | B71: 3+ Children | D71: =D36*$G$2 -> 6486.67 | E71: 4729.72 | F71: 3646.93 | G71: 2974.89 | H71: 2196.32
A72: 1 | B72: Rider Comp. Maternidad | D72: =D37*$G$2 -> 0 | E72: 0 | F72: 119.25 | G72: 119.25 | H72: 119.25
A73: 1 | B73: Transplante de organos | D73: =D38*$G$2 -> 0 | E73: 0 | F73: 0 | G73: 0 | H73: 0
A77: TARIFAS TRIMESTRALES
A78: EDAD | C78: CW1 | D78: CW2 | E78: CW3 | F78: CW4 | G78: CW5 | H78: CW6
A79: 18 | B79: 18-24 | D79: =D10*$G$3 -> 4165.7 | E79: =E10*$G$3 -> 2853.125 | F79: 2002.825 | G79: 1382.7 | H79: 1056.825
A80: 25 | B80: 25-29 | D80: =D11*$G$3 -> 4364.25 | E80: 3168 | F80: 2225.575 | G80: 1516.625 | H80: 1165.45
A81: 30 | B81: 30-34 | D81: =D12*$G$3 -> 4565.275 | E81: 3394.6 | F81: 2476.1 | G81: 1843.325 | H81: 1409.925
A82: 35 | B82: 35-39 | D82: =D13*$G$3 -> 5107.575 | E82: 3795 | F82: 2780.525 | G82: 2058.925 | H82: 1572.175
A83: 40 | B83: 40-44 | D83: =D14*$G$3 -> 5932.85 | E83: 4165.7 | F83: 3087.15 | G83: 2275.35 | H83: 1733.6
A84: 45 | B84: 45-49 | D84: =D15*$G$3 -> 6618.975 | E84: 4650.525 | F84: 3447.4 | G84: 2546.5 | H84: 1950.575
A85: 50 | B85: 50-54 | D85: =D16*$G$3 -> 8642.975 | E85: 6133.875 | F85: 4532.55 | G85: 3629.175 | H85: 2790.7
A86: 55 | B86: 55-59 | D86: =D17*$G$3 -> 9213.05 | E86: 6532.35 | F86: 4838.075 | G86: 3872.275 | H86: 2952.4
A87: 60 | B87: 60 | D87: =D18*$G$3 -> 10012.475 | E87: 7103.8 | F87: 5504.95 | G87: 4603.5 | H87: 3709.75
A88: 61 | B88: 61 | D88: =D19*$G$3 -> 10753.6 | E88: 7618.05 | F88: 5894.075 | G88: 4955.775 | H88: 3981.175
A89: 62 | B89: 62 | D89: =D20*$G$3 -> 11780.45 | E89: 8330.025 | F89: 6450.95 | G89: 5414.75 | H89: 4359.3
A90: 63 | B90: 63 | D90: =D21*$G$3 -> 12522.125 | E90: 8871.225 | F90: 6867.85 | G90: 5768.125 | H90: 4630.175
A91: 64 | B91: 64 | D91: =D22*$G$3 -> 13548.975 | E91: 9584.85 | F91: 7424.175 | G91: 6228.2 | H91: 5009.675
A92: 65 | B92: 65 | D92: =D23*$G$3 -> 17714.125 | E92: 12522.125 | F92: 9397.025 | G92: 8312.7 | H92: 7066.4
A93: 66 | B93: 66 | D93: =D24*$G$3 -> 20594.2 | E93: 14548.05 | F93: 10924.925 | G93: 9666.8 | H93: 8203.25
A94: 67 | B94: 67 | D94: =D25*$G$3 -> 22476.575 | E94: 15888.675 | F94: 11925.375 | G94: 10559.45 | H94: 8962.25
A95: 68 | B95: 68 | D95: =D26*$G$3 -> 24900.7 | E95: 17598.9 | F95: 13204.4 | G95: 11696.025 | H95: 9936.85
A96: 69 | B96: 69 | D96: =D27*$G$3 -> 27382.575 | E96: 19339.925 | F96: 14539.25 | G96: 12860.375 | H96: 10910.075
A97: 70 | B97: 70 | D97: =D28*$G$3 -> 33713.9 | E97: 23559.525 | F97: 17095.375 | G97: 14972.1 | H97: 12833.15
A98: 71 | B98: 71 | D98: =D29*$G$3 -> 35026.2 | E98: 24473.9 | F98: 17764.175 | G98: 15568.025 | H98: 13347.675
A99: 72 | B99: 72 | D99: =D30*$G$3 -> 36024.45 | E99: 25186.15 | F99: 18263.575 | G99: 16000.325 | H99: 13726.9
A100: 73 | B100: 73 | D100: =D31*$G$3 -> 37336.75 | E100: 26099.975 | F100: 18932.1 | G100: 16595.425 | H100: 14240.875
A101: 74 | B101: 74 | D101: =D32*$G$3 -> 38021.5 | E101: 26555.375 | F101: 19292.9 | G101: 16893.8 | H101: 14485.075
A102: 75 | B102: 75+ | D102: =D33*$G$3 -> 39675.075 | E102: 27723.85 | F102: 20125.325 | G102: 17625.3 | H102: 15106.85
A103: 1 | B103: 1 Child | D103: =D34*$G$3 -> 1456.4 | E103: 1056.55 | F103: 807.95 | G103: 678.15 | H103: 488.125
A104: 2 | B104: 2 Children | D104: =D35*$G$3 -> 2311.65 | E104: 1684.1 | F104: 1280.95 | G104: 1056.825 | H104: 787.05
A105: 3 | B105: 3+ Children | D105: =D36*$G$3 -> 3365.725 | E105: 2454.1 | F105: 1892.275 | G105: 1543.575 | H105: 1139.6
A106: 1 | B106: Rider Comp. Maternidad | D106: =D37*$G$3 -> 0 | E106: 0 | F106: 61.875 | G106: 61.875 | H106: 61.875
A107: 1 | B107: Transplante de organos | D107: =D38*$G$3 -> 0 | E107: 0 | F107: 0 | G107: 0 | H107: 0
D108: =D39*$G$3 -> 0 | E108: 0 | F108: 0 | G108: 0 | H108: 0
A114: BUPA SECURE CARE
A115: TARIFAS ANUALES
A117: EDAD | D117: SE2 | E117: SE3 | F117: SE4 | G117: SE5 | H117: SE6
A118: 18 | B118: 18-24 | D118: =R118 -> 7408 | E118: =S118 -> 5800 | F118: 4326 | G118: 3676 | H118: 2756 | L118: =Guatemala!D48 -> 7408 | M118: =Guatemala!E48 -> 5800 | N118: =Guatemala!F48 -> 4326 | O118: =Guatemala!G48 -> 3676 | P118: =Guatemala!H48 -> 2756 | R118: =L118*$N$2 -> 7408 | S118: =M118*$N$2 -> 5800 | T118: 4326 | U118: 3676 | V118: 2756
A119: 25 | B119: 25-29 | D119: =R119 -> 8134 | E119: =S119 -> 6526 | F119: =T119 -> 4867 | G119: =U119 -> 4059 | H119: =V119 -> 3063 | L119: =Guatemala!D49 -> 8134 | M119: =Guatemala!E49 -> 6526 | N119: =Guatemala!F49 -> 4867 | O119: =Guatemala!G49 -> 4059 | P119: =Guatemala!H49 -> 3063 | R119: =L119*$N$2 -> 8134 | S119: =M119*$N$2 -> 6526 | T119: =N119*$N$2 -> 4867 | U119: =O119*$N$2 -> 4059 | V119: =P119*$N$2 -> 3063
A120: 30 | B120: 30-34 | D120: 9343 | E120: 7652 | F120: 5655 | G120: 4743 | H120: 3601 | L120: =Guatemala!D50 -> 9343 | M120: =Guatemala!E50 -> 7652 | N120: =Guatemala!F50 -> 5655 | O120: =Guatemala!G50 -> 4743 | P120: =Guatemala!H50 -> 3601 | R120: 9343 | S120: 7652 | T120: 5655 | U120: 4743 | V120: 3601
A121: 35 | B121: 35-39 | D121: 10311 | E121: 8618 | F121: 6286 | G121: 5279 | H121: 3975 | L121: =Guatemala!D51 -> 10311 | M121: =Guatemala!E51 -> 8618 | N121: =Guatemala!F51 -> 6286 | O121: =Guatemala!G51 -> 5279 | P121: =Guatemala!H51 -> 3975 | R121: 10311 | S121: 8618 | T121: 6286 | U121: 5279 | V121: 3975
A122: 40 | B122: 40-44 | D122: 11513 | E122: 9827 | F122: 7072 | G122: 5968 | H122: 4516 | L122: =Guatemala!D52 -> 11513 | M122: =Guatemala!E52 -> 9827 | N122: =Guatemala!F52 -> 7072 | O122: =Guatemala!G52 -> 5968 | P122: =Guatemala!H52 -> 4516 | R122: 11513 | S122: 9827 | T122: 7072 | U122: 5968 | V122: 4516
A123: 45 | B123: 45-49 | D123: 13288 | E123: 11513 | F123: 8247 | G123: 6965 | H123: 5204 | L123: =Guatemala!D53 -> 13288 | M123: =Guatemala!E53 -> 11513 | N123: =Guatemala!F53 -> 8247 | O123: =Guatemala!G53 -> 6965 | P123: =Guatemala!H53 -> 5204 | R123: 13288 | S123: 11513 | T123: 8247 | U123: 6965 | V123: 5204
A124: 50 | B124: 50-54 | D124: 14497 | E124: 12646 | F124: 9033 | G124: 7577 | H124: 5740 | L124: =Guatemala!D54 -> 14497 | M124: =Guatemala!E54 -> 12646 | N124: =Guatemala!F54 -> 9033 | O124: =Guatemala!G54 -> 7577 | P124: =Guatemala!H54 -> 5740 | R124: 14497 | S124: 12646 | T124: 9033 | U124: 7577 | V124: 5740
A125: 55 | B125: 55-59 | D125: 17069 | E125: 15133 | F125: 10679 | G125: 9029 | H125: 6737 | L125: =Guatemala!D55 -> 17069 | M125: =Guatemala!E55 -> 15133 | N125: =Guatemala!F55 -> 10679 | O125: =Guatemala!G55 -> 9029 | P125: =Guatemala!H55 -> 6737 | R125: 17069 | S125: 15133 | T125: 10679 | U125: 9029 | V125: 6737
A126: 60 | B126: 60 | D126: 17876 | E126: 16184 | F126: 11306 | G126: 9566 | H126: 7117 | L126: =Guatemala!D56 -> 17876 | M126: =Guatemala!E56 -> 16184 | N126: =Guatemala!F56 -> 11306 | O126: =Guatemala!G56 -> 9566 | P126: =Guatemala!H56 -> 7117 | R126: 17876 | S126: 16184 | T126: 11306 | U126: 9566 | V126: 7117
A127: 61 | B127: 61 | D127: 20129 | E127: 18197 | F127: 12800 | G127: 10712 | H127: 8035 | L127: =Guatemala!D57 -> 20129 | M127: =Guatemala!E57 -> 18197 | N127: =Guatemala!F57 -> 12800 | O127: =Guatemala!G57 -> 10712 | P127: =Guatemala!H57 -> 8035 | R127: 20129 | S127: 18197 | T127: 12800 | U127: 10712 | V127: 8035
A128: 62 | B128: 62 | D128: 22380 | E128: 20210 | F128: 14213 | G128: 11936 | H128: 8952 | L128: =Guatemala!D58 -> 22380 | M128: =Guatemala!E58 -> 20210 | N128: =Guatemala!F58 -> 14213 | O128: =Guatemala!G58 -> 11936 | P128: =Guatemala!H58 -> 8952 | R128: 22380 | S128: 20210 | T128: 14213 | U128: 11936 | V128: 8952
A129: 63 | B129: 63 | D129: 24560 | E129: 22221 | F129: 15625 | G129: 13160 | H129: 9868 | L129: =Guatemala!D59 -> 24560 | M129: =Guatemala!E59 -> 22221 | N129: =Guatemala!F59 -> 15625 | O129: =Guatemala!G59 -> 13160 | P129: =Guatemala!H59 -> 9868 | R129: 24560 | S129: 22221 | T129: 15625 | U129: 13160 | V129: 9868
A130: 64 | B130: 64 | D130: 26810 | E130: 24314 | F130: 17035 | G130: 14378 | H130: 10787 | L130: =Guatemala!D60 -> 26810 | M130: =Guatemala!E60 -> 24314 | N130: =Guatemala!F60 -> 17035 | O130: =Guatemala!G60 -> 14378 | P130: =Guatemala!H60 -> 10787 | R130: 26810 | S130: 24314 | T130: 17035 | U130: 14378 | V130: 10787
A131: 65 | B131: 65 | D131: 26892 | E131: 24476 | F131: 17195 | G131: 14461 | H131: 10787 | L131: =Guatemala!D61 -> 26892 | M131: =Guatemala!E61 -> 24476 | N131: =Guatemala!F61 -> 17195 | O131: =Guatemala!G61 -> 14461 | P131: =Guatemala!H61 -> 10787 | R131: 26892 | S131: 24476 | T131: 17195 | U131: 14461 | V131: 10787
A132: 66 | B132: 66 | D132: 26892 | E132: 24718 | F132: 17271 | G132: 14536 | H132: 10787 | L132: =Guatemala!D62 -> 26892 | M132: =Guatemala!E62 -> 24718 | N132: =Guatemala!F62 -> 17271 | O132: =Guatemala!G62 -> 14536 | P132: =Guatemala!H62 -> 10787 | R132: 26892 | S132: 24718 | T132: 17271 | U132: 14536 | V132: 10787
A133: 67 | B133: 67 | D133: 29867 | E133: 27533 | F133: 19154 | G133: 16139 | H133: 12013 | L133: =Guatemala!D63 -> 29867 | M133: =Guatemala!E63 -> 27533 | N133: =Guatemala!F63 -> 19154 | O133: =Guatemala!G63 -> 16139 | P133: =Guatemala!H63 -> 12013 | R133: 29867 | S133: 27533 | T133: 19154 | U133: 16139 | V133: 12013
A134: 68 | B134: 68 | D134: 32845 | E134: 30271 | F134: 21116 | G134: 17747 | H134: 13238 | L134: =Guatemala!D64 -> 32845 | M134: =Guatemala!E64 -> 30271 | N134: =Guatemala!F64 -> 21116 | O134: =Guatemala!G64 -> 17747 | P134: =Guatemala!H64 -> 13238 | R134: 32845 | S134: 30271 | T134: 21116 | U134: 17747 | V134: 13238
A135: 69 | B135: 69 | D135: 34376 | E135: 31641 | F135: 22061 | G135: 18587 | H135: 13849 | L135: =Guatemala!D65 -> 34376 | M135: =Guatemala!E65 -> 31641 | N135: =Guatemala!F65 -> 22061 | O135: =Guatemala!G65 -> 18587 | P135: =Guatemala!H65 -> 13849 | R135: 34376 | S135: 31641 | T135: 22061 | U135: 18587 | V135: 13849
A136: 70 | B136: 70 | D136: 34458 | E136: 32125 | F136: 22296 | G136: 18737 | H136: 13922 | L136: =Guatemala!D66 -> 34458 | M136: =Guatemala!E66 -> 32125 | N136: =Guatemala!F66 -> 22296 | O136: =Guatemala!G66 -> 18737 | P136: =Guatemala!H66 -> 13922 | R136: 34458 | S136: 32125 | T136: 22296 | U136: 18737 | V136: 13922
A137: 71 | B137: 71 | D137: 38728 | E137: 36230 | F137: 25120 | G137: 21111 | H137: 15685 | L137: =Guatemala!D67 -> 38728 | M137: =Guatemala!E67 -> 36230 | N137: =Guatemala!F67 -> 25120 | O137: =Guatemala!G67 -> 21111 | P137: =Guatemala!H67 -> 15685 | R137: 38728 | S137: 36230 | T137: 25120 | U137: 21111 | V137: 15685
A138: 72 | B138: 72 | D138: 43071 | E138: 40256 | F138: 27865 | G138: 23404 | H138: 17439 | L138: =Guatemala!D68 -> 43071 | M138: =Guatemala!E68 -> 40256 | N138: =Guatemala!F68 -> 27865 | O138: =Guatemala!G68 -> 23404 | P138: =Guatemala!H68 -> 17439 | R138: 43071 | S138: 40256 | T138: 27865 | U138: 23404 | V138: 17439
A139: 73 | B139: 73 | D139: 47419 | E139: 44276 | F139: 30696 | G139: 25776 | H139: 19199 | L139: =Guatemala!D69 -> 47419 | M139: =Guatemala!E69 -> 44276 | N139: =Guatemala!F69 -> 30696 | O139: =Guatemala!G69 -> 25776 | P139: =Guatemala!H69 -> 19199 | R139: 47419 | S139: 44276 | T139: 30696 | U139: 25776 | V139: 19199
A140: 74 | B140: 74 | D140: 51686 | E140: 48303 | F140: 33516 | G140: 28144 | H140: 20960 | L140: =Guatemala!D70 -> 51686 | M140: =Guatemala!E70 -> 48303 | N140: =Guatemala!F70 -> 33516 | O140: =Guatemala!G70 -> 28144 | P140: =Guatemala!H70 -> 20960 | R140: 51686 | S140: 48303 | T140: 33516 | U140: 28144 | V140: 20960
A141: 75 | B141: 75+ | D141: 56355 | E141: 52976 | F141: 36657 | G141: 30747 | H141: 22872 | L141: =Guatemala!D71 -> 56355 | M141: =Guatemala!E71 -> 52976 | N141: =Guatemala!F71 -> 36657 | O141: =Guatemala!G71 -> 30747 | P141: =Guatemala!H71 -> 22872 | R141: 56355 | S141: 52976 | T141: 36657 | U141: 30747 | V141: 22872
A142: 1 | B142: 1 Child | D142: 3543 | E142: 2099 | F142: 1732 | G142: 1458 | H142: 1078 | L142: =Guatemala!D72 -> 3543 | M142: =Guatemala!E72 -> 2099 | N142: =Guatemala!F72 -> 1732 | O142: =Guatemala!G72 -> 1458 | P142: =Guatemala!H72 -> 1078 | R142: 3543 | S142: 2099 | T142: 1732 | U142: 1458 | V142: 1078
A143: 2 | B143: 2 Children | D143: 6043 | E143: 3148 | F143: 2751 | G143: 2298 | H143: 1686 | L143: =Guatemala!D73 -> 6043 | M143: =Guatemala!E73 -> 3148 | N143: =Guatemala!F73 -> 2751 | O143: =Guatemala!G73 -> 2298 | P143: =Guatemala!H73 -> 1686 | R143: 6043 | S143: 3148 | T143: 2751 | U143: 2298 | V143: 1686
A144: 3 | B144: 3+ Children | D144: =R144 -> 8856 | E144: =S144 -> 4514 | F144: =T144 -> 4008 | G144: =U144 -> 3367 | H144: =V144 -> 2530 | L144: =Guatemala!D74 -> 8856 | M144: =Guatemala!E74 -> 4514 | N144: =Guatemala!F74 -> 4008 | O144: =Guatemala!G74 -> 3367 | P144: =Guatemala!H74 -> 2530 | R144: 8856 | S144: 4514 | T144: 4008 | U144: 3367 | V144: 2530
A145: 1 | B145: Rider Comp. Maternidad | D145: =L145 -> 225 | E145: =M145 -> 225 | F145: 225 | G145: 225 | H145: 225 | L145: 225 | M145: 225 | N145: 225 | O145: 225 | P145: 225
A146: 1 | B146: Transplante de organos | D146: =L146 -> 300 | E146: =M146 -> 300 | F146: =N146 -> 300 | G146: =O146 -> 300 | H146: =P146 -> 300 | L146: 300 | M146: 300 | N146: 300 | O146: 300 | P146: 300
A149: TARIFAS SEMESTRALES
A151: EDAD | D151: SE2 | E151: SE3 | F151: SE4 | G151: SE5 | H151: SE6
A152: 18 | B152: 18-24 | D152: =D118*$G$2 -> 3926.24 | E152: =E118*$G$2 -> 3074 | F152: 2292.78 | G152: 1948.28 | H152: 1460.68
A153: 25 | B153: 25-29 | D153: =D119*$G$2 -> 4311.02 | E153: 3458.78 | F153: 2579.51 | G153: 2151.27 | H153: 1623.39
A154: 30 | B154: 30-34 | D154: =D120*$G$2 -> 4951.79 | E154: 4055.56 | F154: 2997.15 | G154: 2513.79 | H154: 1908.53
A155: 35 | B155: 35-39 | D155: =D121*$G$2 -> 5464.83 | E155: 4567.54 | F155: 3331.58 | G155: 2797.87 | H155: 2106.75
A156: 40 | B156: 40-44 | D156: =D122*$G$2 -> 6101.89 | E156: 5208.31 | F156: 3748.16 | G156: 3163.04 | H156: 2393.48
A157: 45 | B157: 45-49 | D157: =D123*$G$2 -> 7042.64 | E157: 6101.89 | F157: 4370.91 | G157: 3691.45 | H157: 2758.12
A158: 50 | B158: 50-54 | D158: =D124*$G$2 -> 7683.41 | E158: 6702.38 | F158: 4787.49 | G158: 4015.81 | H158: 3042.2
A159: 55 | B159: 55-59 | D159: =D125*$G$2 -> 9046.57 | E159: 8020.49 | F159: 5659.87 | G159: 4785.37 | H159: 3570.61
A160: 60 | B160: 60 | D160: =D126*$G$2 -> 9474.28 | E160: 8577.52 | F160: 5992.18 | G160: 5069.98 | H160: 3772.01
A161: 61 | B161: 61 | D161: =D127*$G$2 -> 10668.37 | E161: 9644.41 | F161: 6784 | G161: 5677.36 | H161: 4258.55
A162: 62 | B162: 62 | D162: =D128*$G$2 -> 11861.4 | E162: 10711.3 | F162: 7532.89 | G162: 6326.08 | H162: 4744.56
A163: 63 | B163: 63 | D163: =D129*$G$2 -> 13016.8 | E163: 11777.13 | F163: 8281.25 | G163: 6974.8 | H163: 5230.04
A164: 64 | B164: 64 | D164: =D130*$G$2 -> 14209.3 | E164: 12886.42 | F164: 9028.55 | G164: 7620.34 | H164: 5717.11
A165: 65 | B165: 65 | D165: =D131*$G$2 -> 14252.76 | E165: 12972.28 | F165: 9113.35 | G165: 7664.33 | H165: 5717.11
A166: 66 | B166: 66 | D166: =D132*$G$2 -> 14252.76 | E166: 13100.54 | F166: 9153.63 | G166: 7704.08 | H166: 5717.11
A167: 67 | B167: 67 | D167: =D133*$G$2 -> 15829.51 | E167: 14592.49 | F167: 10151.62 | G167: 8553.67 | H167: 6366.89
A168: 68 | B168: 68 | D168: =D134*$G$2 -> 17407.85 | E168: 16043.63 | F168: 11191.48 | G168: 9405.91 | H168: 7016.14
A169: 69 | B169: 69 | D169: =D135*$G$2 -> 18219.28 | E169: 16769.73 | F169: 11692.33 | G169: 9851.11 | H169: 7339.97
A170: 70 | B170: 70 | D170: =D136*$G$2 -> 18262.74 | E170: 17026.25 | F170: 11816.88 | G170: 9930.61 | H170: 7378.66
A171: 71 | B171: 71 | D171: =D137*$G$2 -> 20525.84 | E171: 19201.9 | F171: 13313.6 | G171: 11188.83 | H171: 8313.05
A172: 72 | B172: 72 | D172: =D138*$G$2 -> 22827.63 | E172: 21335.68 | F172: 14768.45 | G172: 12404.12 | H172: 9242.67
A173: 73 | B173: 73 | D173: =D139*$G$2 -> 25132.07 | E173: 23466.28 | F173: 16268.88 | G173: 13661.28 | H173: 10175.47
A174: 74 | B174: 74 | D174: =D140*$G$2 -> 27393.58 | E174: 25600.59 | F174: 17763.48 | G174: 14916.32 | H174: 11108.8
A175: 75 | B175: 75+ | D175: =D141*$G$2 -> 29868.15 | E175: 28077.28 | F175: 19428.21 | G175: 16295.91 | H175: 12122.16
A176: 1 | B176: 1 Child | D176: =D142*$G$2 -> 1877.79 | E176: 1112.47 | F176: 917.96 | G176: 772.74 | H176: 571.34
A177: 2 | B177: 2 Children | D177: =D143*$G$2 -> 3202.79 | E177: 1668.44 | F177: 1458.03 | G177: 1217.94 | H177: 893.58
A178: 3 | B178: 3+ Children | D178: =D144*$G$2 -> 4693.68 | E178: 2392.42 | F178: 2124.24 | G178: 1784.51 | H178: 1340.9
A179: 1 | B179: Rider Comp. Maternidad | D179: =D145*$G$2 -> 119.25 | E179: 119.25 | F179: 119.25 | G179: 119.25 | H179: 119.25
A180: 1 | B180: Transplante de organos | D180: =D146*$G$2 -> 159 | E180: 159 | F180: 159 | G180: 159 | H180: 159
A184: TARIFAS TRIMESTRALES
A186: EDAD | D186: SE2 | E186: SE3 | F186: SE4 | G186: SE5 | H186: SE6
A187: 18 | B187: 18-24 | D187: =D118*$G$3 -> 2037.2 | E187: =E118*$G$3 -> 1595 | F187: 1189.65 | G187: 1010.9 | H187: 757.9
A188: 25 | B188: 25-29 | D188: =D119*$G$3 -> 2236.85 | E188: 1794.65 | F188: 1338.425 | G188: 1116.225 | H188: 842.325
A189: 30 | B189: 30-34 | D189: =D120*$G$3 -> 2569.325 | E189: 2104.3 | F189: 1555.125 | G189: 1304.325 | H189: 990.275
A190: 35 | B190: 35-39 | D190: =D121*$G$3 -> 2835.525 | E190: 2369.95 | F190: 1728.65 | G190: 1451.725 | H190: 1093.125
A191: 40 | B191: 40-44 | D191: =D122*$G$3 -> 3166.075 | E191: 2702.425 | F191: 1944.8 | G191: 1641.2 | H191: 1241.9
A192: 45 | B192: 45-49 | D192: =D123*$G$3 -> 3654.2 | E192: 3166.075 | F192: 2267.925 | G192: 1915.375 | H192: 1431.1
A193: 50 | B193: 50-54 | D193: =D124*$G$3 -> 3986.675 | E193: 3477.65 | F193: 2484.075 | G193: 2083.675 | H193: 1578.5
A194: 55 | B194: 55-59 | D194: =D125*$G$3 -> 4693.975 | E194: 4161.575 | F194: 2936.725 | G194: 2482.975 | H194: 1852.675
A195: 60 | B195: 60 | D195: =D126*$G$3 -> 4915.9 | E195: 4450.6 | F195: 3109.15 | G195: 2630.65 | H195: 1957.175
A196: 61 | B196: 61 | D196: =D127*$G$3 -> 5535.475 | E196: 5004.175 | F196: 3520 | G196: 2945.8 | H196: 2209.625
A197: 62 | B197: 62 | D197: =D128*$G$3 -> 6154.5 | E197: 5557.75 | F197: 3908.575 | G197: 3282.4 | H197: 2461.8
A198: 63 | B198: 63 | D198: =D129*$G$3 -> 6754 | E198: 6110.775 | F198: 4296.875 | G198: 3619 | H198: 2713.7
A199: 64 | B199: 64 | D199: =D130*$G$3 -> 7372.75 | E199: 6686.35 | F199: 4684.625 | G199: 3953.95 | H199: 2966.425
A200: 65 | B200: 65 | D200: =D131*$G$3 -> 7395.3 | E200: 6730.9 | F200: 4728.625 | G200: 3976.775 | H200: 2966.425
A201: 66 | B201: 66 | D201: =D132*$G$3 -> 7395.3 | E201: 6797.45 | F201: 4749.525 | G201: 3997.4 | H201: 2966.425
A202: 67 | B202: 67 | D202: =D133*$G$3 -> 8213.425 | E202: 7571.575 | F202: 5267.35 | G202: 4438.225 | H202: 3303.575
A203: 68 | B203: 68 | D203: =D134*$G$3 -> 9032.375 | E203: 8324.525 | F203: 5806.9 | G203: 4880.425 | H203: 3640.45
A204: 69 | B204: 69 | D204: =D135*$G$3 -> 9453.4 | E204: 8701.275 | F204: 6066.775 | G204: 5111.425 | H204: 3808.475
A205: 70 | B205: 70 | D205: =D136*$G$3 -> 9475.95 | E205: 8834.375 | F205: 6131.4 | G205: 5152.675 | H205: 3828.55
A206: 71 | B206: 71 | D206: =D137*$G$3 -> 10650.2 | E206: 9963.25 | F206: 6908 | G206: 5805.525 | H206: 4313.375
A207: 72 | B207: 72 | D207: =D138*$G$3 -> 11844.525 | E207: 11070.4 | F207: 7662.875 | G207: 6436.1 | H207: 4795.725
A208: 73 | B208: 73 | D208: =D139*$G$3 -> 13040.225 | E208: 12175.9 | F208: 8441.4 | G208: 7088.4 | H208: 5279.725
A209: 74 | B209: 74 | D209: =D140*$G$3 -> 14213.65 | E209: 13283.325 | F209: 9216.9 | G209: 7739.6 | H209: 5764
A210: 75 | B210: 75+ | D210: =D141*$G$3 -> 15497.625 | E210: 14568.4 | F210: 10080.675 | G210: 8455.425 | H210: 6289.8
A211: 1 | B211: 1 Child | D211: =D142*$G$3 -> 974.325 | E211: 577.225 | F211: 476.3 | G211: 400.95 | H211: 296.45
A212: 2 | B212: 2 Children | D212: =D143*$G$3 -> 1661.825 | E212: 865.7 | F212: 756.525 | G212: 631.95 | H212: 463.65
A213: 3 | B213: 3+ Children | D213: =D144*$G$3 -> 2435.4 | E213: 1241.35 | F213: 1102.2 | G213: 925.925 | H213: 695.75
A214: 1 | B214: Rider Comp. Maternidad | D214: =D145*$G$3 -> 61.875 | E214: 61.875 | F214: 61.875 | G214: 61.875 | H214: 61.875
A215: 1 | B215: Transplante de organos | D215: =D146*$G$3 -> 82.5 | E215: 82.5 | F215: 82.5 | G215: 82.5 | H215: 82.5
A220: BUPA ESSENTIAL CARE
A221: TARIFAS ANUALES
A223: EDAD | C223: ET1 | D223: ET2 | E223: ET3 | F223: ET4 | G223: ET5 | H223: ET6
A224: 18 | C224: =R224 -> 1700 | D224: =S224 -> 1635 | E224: 1516 | F224: 1075 | G224: 810 | H224: 570 | K224: =Guatemala!C86 -> 1700 | L224: =Guatemala!D86 -> 1635 | M224: =Guatemala!E86 -> 1516 | N224: =Guatemala!F86 -> 1075 | O224: =Guatemala!G86 -> 810 | P224: =Guatemala!H86 -> 570 | R224: =K224*M2 -> 1700 | S224: =L224*$O$2 -> 1635 | T224: 1516 | U224: 1075 | V224: 810 | W224: 570
A225: 19 | C225: =R225 -> 1733 | D225: =S225 -> 1667 | E225: =T225 -> 1546 | F225: =U225 -> 1094 | G225: =V225 -> 810 | H225: =W225 -> 588 | K225: =Guatemala!C87 -> 1733 | L225: =Guatemala!D87 -> 1667 | M225: =Guatemala!E87 -> 1546 | N225: =Guatemala!F87 -> 1094 | O225: =Guatemala!G87 -> 810 | P225: =Guatemala!H87 -> 588 | R225: =K225*$O$2 -> 1733 | S225: =L225*$O$2 -> 1667 | T225: =M225*$O$2 -> 1546 | U225: =N225*$O$2 -> 1094 | V225: =O225*$O$2 -> 810 | W225: =P225*$O$2 -> 588
A226: 20 | C226: 1763 | D226: 1697 | E226: 1572 | F226: 1114 | G226: 832 | H226: 588 | K226: =Guatemala!C88 -> 1763 | L226: =Guatemala!D88 -> 1697 | M226: =Guatemala!E88 -> 1572 | N226: =Guatemala!F88 -> 1114 | O226: =Guatemala!G88 -> 832 | P226: =Guatemala!H88 -> 588 | R226: 1763 | S226: 1697 | T226: 1572 | U226: 1114 | V226: 832 | W226: 588
A227: 21 | C227: 1796 | D227: 1727 | E227: 1601 | F227: 1134 | G227: 851 | H227: 610 | K227: =Guatemala!C89 -> 1796 | L227: =Guatemala!D89 -> 1727 | M227: =Guatemala!E89 -> 1601 | N227: =Guatemala!F89 -> 1134 | O227: =Guatemala!G89 -> 851 | P227: =Guatemala!H89 -> 610 | R227: 1796 | S227: 1727 | T227: 1601 | U227: 1134 | V227: 851 | W227: 610
... 632 more rows

Sheet Guatemala (hidden)
K1: D1 | L1: D2 | M1: D3 | N1: D4 | O1: D5 | P1: D6
B2: REGIÓN | C2: ='INGRESO DE DATOS'!W14 -> Guatemala | E2: FACTOR SEMESTRAL : | G2: 0.53 | I2: NEW BUSINESS DISCUOUNTS | K2: ='INGRESO DE DATOS'!O42 -> 1 | L2: ='INGRESO DE DATOS'!P42 -> 1 | M2: ='INGRESO DE DATOS'!Q42 -> 1 | N2: ='INGRESO DE DATOS'!R42 -> 1 | O2: ='INGRESO DE DATOS'!S42 -> 1 | P2: ='INGRESO DE DATOS'!T42 -> 0.85
A5: BUPA COMPLETE CARE
A6: TARIFAS ANUALES
A8: EDAD | C8: CW1 | D8: CW2 | E8: CW3 | F8: CW4 | G8: CW5 | H8: CW6
A9: 18 | B9: 18-24 | D9: 15148 | E9: 10375 | F9: 7283 | G9: 5028 | H9: 3843
A10: 25 | B10: 25-29 | D10: 15870 | E10: 11520 | F10: 8093 | G10: 5515 | H10: 4238
A11: 30 | B11: 30-34 | D11: 16601 | E11: 12344 | F11: 9004 | G11: 6703 | H11: 5127
A12: 35 | B12: 35-39 | D12: 18573 | E12: 13800 | F12: 10111 | G12: 7487 | H12: 5717
A13: 40 | B13: 40-44 | D13: 21574 | E13: 15148 | F13: 11226 | G13: 8274 | H13: 6304
A14: 45 | B14: 45-49 | D14: 24069 | E14: 16911 | F14: 12536 | G14: 9260 | H14: 7093
A15: 50 | B15: 50-54 | D15: 31429 | E15: 22305 | F15: 16482 | G15: 13197 | H15: 10148
A16: 55 | B16: 55-59 | D16: 33502 | E16: 23754 | F16: 17593 | G16: 14081 | H16: 10736
A17: 60 | B17: 60 | D17: 36409 | E17: 25832 | F17: 20018 | G17: 16740 | H17: 13490
A18: 61 | B18: 61 | D18: 39104 | E18: 27702 | F18: 21433 | G18: 18021 | H18: 14477
A19: 62 | B19: 62 | D19: 42838 | E19: 30291 | F19: 23458 | G19: 19690 | H19: 15852
A20: 63 | B20: 63 | D20: 45535 | E20: 32259 | F20: 24974 | G20: 20975 | H20: 16837
A21: 64 | B21: 64 | D21: 49269 | E21: 34854 | F21: 26997 | G21: 22648 | H21: 18217
A22: 65 | B22: 65 | D22: 64415 | E22: 45535 | F22: 34171 | G22: 30228 | H22: 25696
A23: 66 | B23: 66 | D23: 74888 | E23: 52902 | F23: 39727 | G23: 35152 | H23: 29830
A24: 67 | B24: 67 | D24: 81733 | E24: 57777 | F24: 43365 | G24: 38398 | H24: 32590
A25: 68 | B25: 68 | D25: 90548 | E25: 63996 | F25: 48016 | G25: 42531 | H25: 36134
A26: 69 | B26: 69 | D26: 99573 | E26: 70327 | F26: 52870 | G26: 46765 | H26: 39673
A27: 70 | B27: 70 | D27: 122596 | E27: 85671 | F27: 62165 | G27: 54444 | H27: 46666
A28: 71 | B28: 71 | D28: 127368 | E28: 88996 | F28: 64597 | G28: 56611 | H28: 48537
A29: 72 | B29: 72 | D29: 130998 | E29: 91586 | F29: 66413 | G29: 58183 | H29: 49916
A30: 73 | B30: 73 | D30: 135770 | E30: 94909 | F30: 68844 | G30: 60347 | H30: 51785
A31: 74 | B31: 74 | D31: 138260 | E31: 96565 | F31: 70156 | G31: 61432 | H31: 52673
A32: 75 | B32: 75+ | D32: 144273 | E32: 100814 | F32: 73183 | G32: 64092 | H32: 54934
A33: 1 | B33: 1 Child | D33: 5296 | E33: 3842 | F33: 2938 | G33: 2466 | H33: 1775
A34: 2 | B34: 2 Children | D34: 8406 | E34: 6124 | F34: 4658 | G34: 3843 | H34: 2862
A35: 3 | B35: 3+ Children | D35: 12239 | E35: 8924 | F35: 6881 | G35: 5613 | H35: 4144
A36: 1 | B36: Rider Comp. Maternidad | D36: 0 | E36: 0 | F36: 225 | G36: 225 | H36: 225
A37: 1 | B37: Transplante de organos | D37: 0 | E37: 0 | F37: 0 | G37: 0 | H37: 0
A44: BUPA SECURE CARE
A45: TARIFAS ANUALES
A47: EDAD | D47: SE2 | E47: SE3 | F47: SE4 | G47: SE5 | H47: SE6
A48: 18 | B48: 18-24 | D48: 7408 | E48: 5800 | F48: 4326 | G48: 3676 | H48: 2756
A49: 25 | B49: 25-29 | D49: 8134 | E49: 6526 | F49: 4867 | G49: 4059 | H49: 3063
A50: 30 | B50: 30-34 | D50: 9343 | E50: 7652 | F50: 5655 | G50: 4743 | H50: 3601
A51: 35 | B51: 35-39 | D51: 10311 | E51: 8618 | F51: 6286 | G51: 5279 | H51: 3975
A52: 40 | B52: 40-44 | D52: 11513 | E52: 9827 | F52: 7072 | G52: 5968 | H52: 4516
A53: 45 | B53: 45-49 | D53: 13288 | E53: 11513 | F53: 8247 | G53: 6965 | H53: 5204
A54: 50 | B54: 50-54 | D54: 14497 | E54: 12646 | F54: 9033 | G54: 7577 | H54: 5740
A55: 55 | B55: 55-59 | D55: 17069 | E55: 15133 | F55: 10679 | G55: 9029 | H55: 6737
A56: 60 | B56: 60 | D56: 17876 | E56: 16184 | F56: 11306 | G56: 9566 | H56: 7117
A57: 61 | B57: 61 | D57: 20129 | E57: 18197 | F57: 12800 | G57: 10712 | H57: 8035
A58: 62 | B58: 62 | D58: 22380 | E58: 20210 | F58: 14213 | G58: 11936 | H58: 8952
A59: 63 | B59: 63 | D59: 24560 | E59: 22221 | F59: 15625 | G59: 13160 | H59: 9868
A60: 64 | B60: 64 | D60: 26810 | E60: 24314 | F60: 17035 | G60: 14378 | H60: 10787
A61: 65 | B61: 65 | D61: 26892 | E61: 24476 | F61: 17195 | G61: 14461 | H61: 10787
A62: 66 | B62: 66 | D62: 26892 | E62: 24718 | F62: 17271 | G62: 14536 | H62: 10787
A63: 67 | B63: 67 | D63: 29867 | E63: 27533 | F63: 19154 | G63: 16139 | H63: 12013
A64: 68 | B64: 68 | D64: 32845 | E64: 30271 | F64: 21116 | G64: 17747 | H64: 13238
A65: 69 | B65: 69 | D65: 34376 | E65: 31641 | F65: 22061 | G65: 18587 | H65: 13849
A66: 70 | B66: 70 | D66: 34458 | E66: 32125 | F66: 22296 | G66: 18737 | H66: 13922
A67: 71 | B67: 71 | D67: 38728 | E67: 36230 | F67: 25120 | G67: 21111 | H67: 15685
A68: 72 | B68: 72 | D68: 43071 | E68: 40256 | F68: 27865 | G68: 23404 | H68: 17439
A69: 73 | B69: 73 | D69: 47419 | E69: 44276 | F69: 30696 | G69: 25776 | H69: 19199
A70: 74 | B70: 74 | D70: 51686 | E70: 48303 | F70: 33516 | G70: 28144 | H70: 20960
A71: 75 | B71: 75+ | D71: 56355 | E71: 52976 | F71: 36657 | G71: 30747 | H71: 22872
A72: 1 | B72: 1 Child | D72: 3543 | E72: 2099 | F72: 1732 | G72: 1458 | H72: 1078
A73: 2 | B73: 2 Children | D73: 6043 | E73: 3148 | F73: 2751 | G73: 2298 | H73: 1686
A74: 3 | B74: 3+ Children | D74: 8856 | E74: 4514 | F74: 4008 | G74: 3367 | H74: 2530
A75: 1 | B75: Rider Comp. Maternidad | D75: 225 | E75: 225 | F75: 225 | G75: 225 | H75: 225
A76: 1 | B76: Transplante de organos | D76: 300 | E76: 300 | F76: 300 | G76: 300 | H76: 300
A82: BUPA ESSENTIAL CARE
A83: TARIFAS ANUALES
A85: EDAD | C85: ET1 | D85: ET2 | E85: ET3 | F85: ET4 | G85: ET5 | H85: ET6
A86: 18 | C86: 1700 | D86: 1635 | E86: 1516 | F86: 1075 | G86: 810 | H86: 570
A87: 19 | C87: 1733 | D87: 1667 | E87: 1546 | F87: 1094 | G87: 810 | H87: 588
A88: 20 | C88: 1763 | D88: 1697 | E88: 1572 | F88: 1114 | G88: 832 | H88: 588
A89: 21 | C89: 1796 | D89: 1727 | E89: 1601 | F89: 1134 | G89: 851 | H89: 610
A90: 22 | C90: 1829 | D90: 1759 | E90: 1631 | F90: 1156 | G90: 872 | H90: 610
A91: 23 | C91: 1858 | D91: 1788 | E91: 1657 | F91: 1174 | G91: 872 | H91: 631
A92: 24 | C92: 1925 | D92: 1851 | E92: 1715 | F92: 1217 | G92: 892 | H92: 649
A93: 25 | C93: 1956 | D93: 1880 | E93: 1744 | F93: 1236 | G93: 913 | H93: 649
A94: 26 | C94: 1987 | D94: 1912 | E94: 1773 | F94: 1256 | G94: 932 | H94: 670
A95: 27 | C95: 2022 | D95: 1944 | E95: 1801 | F95: 1276 | G95: 953 | H95: 670
A96: 28 | C96: 2050 | D96: 1972 | E96: 1828 | F96: 1296 | G96: 974 | H96: 690
A97: 29 | C97: 2116 | D97: 2035 | E97: 1887 | F97: 1337 | G97: 993 | H97: 709
A98: 30 | C98: 2182 | D98: 2097 | E98: 1944 | F98: 1378 | G98: 1014 | H98: 731
A99: 31 | C99: 2214 | D99: 2128 | E99: 1974 | F99: 1399 | G99: 1035 | H99: 731
A100: 32 | C100: 2277 | D100: 2190 | E100: 2030 | F100: 1439 | G100: 1054 | H100: 748
A101: 33 | C101: 2341 | D101: 2251 | E101: 2087 | F101: 1478 | G101: 1075 | H101: 770
A102: 34 | C102: 2406 | D102: 2314 | E102: 2145 | F102: 1518 | G102: 1114 | H102: 792
A103: 35 | C103: 2468 | D103: 2372 | E103: 2201 | F103: 1558 | G103: 1134 | H103: 810
A104: 36 | C104: 2534 | D104: 2436 | E104: 2259 | F104: 1599 | G104: 1174 | H104: 832
A105: 37 | C105: 2597 | D105: 2497 | E105: 2315 | F105: 1638 | G105: 1194 | H105: 851
A106: 38 | C106: 2695 | D106: 2592 | E106: 2403 | F106: 1701 | G106: 1236 | H106: 872
A107: 39 | C107: 2789 | D107: 2681 | E107: 2486 | F107: 1761 | G107: 1276 | H107: 892
A108: 40 | C108: 2855 | D108: 2744 | E108: 2546 | F108: 1801 | G108: 1296 | H108: 913
A109: 41 | C109: 2949 | D109: 2837 | E109: 2630 | F109: 1862 | G109: 1337 | H109: 932
A110: 42 | C110: 3044 | D110: 2927 | E110: 2714 | F110: 1922 | G110: 1378 | H110: 953
A111: 43 | C111: 3139 | D111: 3021 | E111: 2799 | F111: 1982 | G111: 1416 | H111: 993
A112: 44 | C112: 3268 | D112: 3143 | E112: 2912 | F112: 2063 | G112: 1460 | H112: 1014
A113: 45 | C113: 3363 | D113: 3234 | E113: 3000 | F113: 2124 | G113: 1501 | H113: 1054
A114: 46 | C114: 3461 | D114: 3328 | E114: 3086 | F114: 2185 | G114: 1538 | H114: 1075
A115: 47 | C115: 3588 | D115: 3451 | E115: 3199 | F115: 2266 | G115: 1579 | H115: 1094
A116: 48 | C116: 3748 | D116: 3606 | E116: 3342 | F116: 2367 | G116: 1638 | H116: 1134
A117: 49 | C117: 3877 | D117: 3730 | E117: 3456 | F117: 2449 | G117: 1701 | H117: 1174
A118: 50 | C118: 4036 | D118: 3882 | E118: 3599 | F118: 2549 | G118: 1761 | H118: 1194
A119: 51 | C119: 4199 | D119: 4037 | E119: 3744 | F119: 2651 | G119: 1822 | H119: 1236
A120: 52 | C120: 4325 | D120: 4159 | E120: 3856 | F120: 2731 | G120: 1881 | H120: 1276
A121: 53 | C121: 4517 | D121: 4344 | E121: 4027 | F121: 2850 | G121: 1944 | H121: 1318
A122: 54 | C122: 4711 | D122: 4530 | E122: 4200 | F122: 2974 | G122: 2022 | H122: 1337 | I122: CR3 | L122: CR4 | O122: CR5
A123: 55 | C123: 4899 | D123: 4713 | E123: 4368 | F123: 3093 | G123: 2084 | H123: 1378 | I123: INDIVIDUAL | J123: 2 PERSONAS | K123: FAMILIAR | L123: INDIVIDUAL | M123: 2 PERSONAS | N123: FAMILIAR | O123: INDIVIDUAL | P123: 2 PERSONAS | Q123: FAMILIAR
A124: 56 | C124: 5094 | D124: 4898 | E124: 4543 | F124: 3217 | G124: 2165 | H124: 1416 | I124: =AU124 -> 0 | J124: 0 | K124: 0 | L124: 0 | M124: 0 | N124: 0 | O124: 0 | P124: 0 | Q124: 0
A125: 57 | C125: 5284 | D125: 5082 | E125: 4711 | F125: 3336 | G125: 2247 | H125: 1460 | I125: 0 | J125: 0 | K125: 0 | L125: 0 | M125: 0 | N125: 0 | O125: 0 | P125: 0 | Q125: 0
A126: 58 | C126: 5575 | D126: 5361 | E126: 4970 | F126: 3519 | G126: 2328 | H126: 1501
A127: 59 | C127: 5830 | D127: 5607 | E127: 5198 | F127: 3681 | G127: 2428 | H127: 1538
A128: 60 | C128: 6085 | D128: 5852 | E128: 5425 | F128: 3842 | G128: 2530 | H128: 1599
A129: 61 | C129: 6438 | D129: 6191 | E129: 5740 | F129: 4066 | G129: 2651 | H129: 1638
A130: 62 | C130: 6919 | D130: 6654 | E130: 6168 | F130: 4367 | G130: 2833 | H130: 1719
A131: 63 | C131: 7593 | D131: 7300 | E131: 6768 | F131: 4793 | G131: 3093 | H131: 1801
A132: 64 | C132: 8519 | D132: 8194 | E132: 7595 | F132: 5378 | G132: 3460 | H132: 1922
A133: 65 | C133: 9705 | D133: 9332 | E133: 8651 | F133: 6125 | G133: 3924 | H133: 2105
A134: 66 | C134: 11145 | D134: 10718 | E134: 9936 | F134: 7035 | G134: 4469 | H134: 2328
A135: 67 | C135: 12811 | D135: 12320 | E135: 11420 | F135: 8087 | G135: 5097 | H135: 2630
A136: 68 | C136: 14571 | D136: 14013 | E136: 12990 | F136: 9197 | G136: 5782 | H136: 2953
A137: 69 | C137: 16426 | D137: 15798 | E137: 14644 | F137: 10369 | G137: 6510 | H137: 3318
A138: 70 | C138: 18411 | D138: 17706 | E138: 16414 | F138: 11622 | G138: 7319 | H138: 3701
A139: 71 | C139: 20493 | D139: 19707 | E139: 18270 | F139: 12935 | G139: 8167 | H139: 4106
A140: 72 | C140: 22670 | D140: 21801 | E140: 20210 | F140: 14310 | G140: 9075 | H140: 4530
A141: 73 | C141: 24976 | D141: 24021 | E141: 22266 | F141: 15766 | G141: 10046 | H141: 4975
A142: 74 | C142: 27376 | D142: 26328 | E142: 24406 | F142: 17281 | G142: 11078 | H142: 5419
A143: 75 | C143: 29873 | D143: 28729 | E143: 26632 | F143: 18856 | G143: 12169 | H143: 5884
A144: 76 | C144: 32468 | D144: 31224 | E144: 28946 | F144: 20494 | G144: 13320 | H144: 6368
A145: 77 | C145: 35155 | D145: 33810 | E145: 31341 | F145: 22191 | G145: 14532 | H145: 6873
A146: 78 | C146: 37973 | D146: 36519 | E146: 33854 | F146: 23969 | G146: 15806 | H146: 7380
A147: 79 | C147: 40886 | D147: 39321 | E147: 36450 | F147: 25808 | G147: 17119 | H147: 7925
A148: 80 | B148: o mas | C148: 43898 | D148: 42216 | E148: 39134 | F148: 27710 | G148: 18514 | H148: 8452
A149: 1 | B149: Hijo | C149: 739 | D149: 710 | E149: 660 | F149: 467 | G149: 390 | H149: 307
A150: 2 | B150: Hijos | C150: 1157 | D150: 1113 | E150: 1031 | F150: 731 | G150: 610 | H150: 482
A151: 3 | B151: Hijos o más | C151: 1668 | D151: 1604 | E151: 1487 | F151: 1054 | G151: 879 | H151: 693
A152: 1 | B152: Rider Comp. Maternidad | C152: 225 | D152: 225 | E152: 225 | F152: 0 | G152: 0 | H152: 0
A153: 1 | B153: Transplante de organos | C153: 300 | D153: 300 | E153: 300 | F153: 300 | G153: 300 | H153: 300
A160: BUPA CLASSIC CARE
A161: TARIFAS ANUALES
A163: EDAD | D163: ET2 | E163: ET3 | F163: ET4 | G163: ET5 | H163: ET6
A164: 18 | D164: 3724 | E164: 2886 | F164: 1887 | G164: 1385 | H164: 974
A165: 19 | D165: 3798 | E165: 2923 | F165: 1922 | G165: 1385 | H165: 1004
A166: 20 | D166: 3831 | E166: 2994 | F166: 1958 | G166: 1422 | H166: 1004
A167: 21 | D167: 3906 | E167: 3072 | F167: 1993 | G167: 1455 | H167: 1041
A168: 22 | D168: 3983 | E168: 3143 | F168: 2029 | G168: 1490 | H168: 1041
A169: 23 | D169: 4017 | E169: 3176 | F169: 2061 | G169: 1490 | H169: 1078
A170: 24 | D170: 4088 | E170: 3253 | F170: 2136 | G170: 1525 | H170: 1108
A171: 25 | D171: 4163 | E171: 3323 | F171: 2170 | G171: 1561 | H171: 1108
A172: 26 | D172: 4237 | E172: 3397 | F172: 2205 | G172: 1593 | H172: 1145
A173: 27 | D173: 4272 | E173: 3468 | F173: 2243 | G173: 1629 | H173: 1145
A174: 28 | D174: 4380 | E174: 3543 | F174: 2275 | G174: 1662 | H174: 1178
A175: 29 | D175: 4454 | E175: 3616 | F175: 2347 | G175: 1696 | H175: 1210
A176: 30 | D176: 4564 | E176: 3724 | F176: 2419 | G176: 1733 | H176: 1249
A177: 31 | D177: 4635 | E177: 3798 | F177: 2456 | G177: 1769 | H177: 1249
A178: 32 | D178: 4745 | E178: 3906 | F178: 2527 | G178: 1800 | H178: 1280
A179: 33 | D179: 4856 | E179: 4017 | F179: 2597 | G179: 1837 | H179: 1319
A180: 34 | D180: 4966 | E180: 4130 | F180: 2668 | G180: 1905 | H180: 1352
A181: 35 | D181: 5114 | E181: 4237 | F181: 2739 | G181: 1939 | H181: 1385
A182: 36 | D182: 5220 | E182: 4346 | F182: 2810 | G182: 2006 | H182: 1422
A183: 37 | D183: 5330 | E183: 4454 | F183: 2881 | G183: 2042 | H183: 1455
A184: 38 | D184: 5476 | E184: 4600 | F184: 2990 | G184: 2110 | H184: 1490
A185: 39 | D185: 5623 | E185: 4745 | F185: 3092 | G185: 2184 | H185: 1525
A186: 40 | D186: 5804 | E186: 4856 | F186: 3167 | G186: 2214 | H186: 1561
A187: 41 | D187: 5949 | E187: 5004 | F187: 3272 | G187: 2285 | H187: 1593
A188: 42 | D188: 6097 | E188: 5146 | F188: 3377 | G188: 2354 | H188: 1629
A189: 43 | D189: 6280 | E189: 5330 | F189: 3483 | G189: 2422 | H189: 1696
A190: 44 | D190: 6461 | E190: 5476 | F190: 3625 | G190: 2494 | H190: 1733
A191: 45 | D191: 6642 | E191: 5658 | F191: 3731 | G191: 2564 | H191: 1800
A192: 46 | D192: 6827 | E192: 5841 | F192: 3839 | G192: 2631 | H192: 1837
A193: 47 | D193: 7008 | E193: 5988 | F193: 3981 | G193: 2700 | H193: 1871
A194: 48 | D194: 7299 | E194: 6241 | F194: 4158 | G194: 2804 | H194: 1939
A195: 49 | D195: 7555 | E195: 6461 | F195: 4302 | G195: 2910 | H195: 2006
A196: 50 | D196: 7811 | E196: 6680 | F196: 4480 | G196: 3010 | H196: 2042
A197: 51 | D197: 8066 | E197: 6933 | F197: 4659 | G197: 3115 | H197: 2110
A198: 52 | D198: 8321 | E198: 7153 | F198: 4798 | G198: 3218 | H198: 2184
A199: 53 | D199: 8650 | E199: 7445 | F199: 5011 | G199: 3322 | H199: 2251
A200: 54 | D200: 8977 | E200: 7739 | F200: 5226 | G200: 3456 | H200: 2285
A201: 55 | D201: 9306 | E201: 8032 | F201: 5437 | G201: 3563 | H201: 2354
A202: 56 | D202: 9633 | E202: 8321 | F202: 5651 | G202: 3700 | H202: 2422
A203: 57 | D203: 9964 | E203: 8612 | F203: 5863 | G203: 3841 | H203: 2494
A204: 58 | D204: 10401 | E204: 8977 | F204: 6184 | G204: 3978 | H204: 2564
A205: 59 | D205: 10801 | E205: 9341 | F205: 6468 | G205: 4150 | H205: 2631
A206: 60 | D206: 11242 | E206: 9745 | F206: 6752 | G206: 4324 | H206: 2734
A207: 61 | D207: 11860 | E207: 10253 | F207: 7143 | G207: 4532 | H207: 2804
A208: 62 | D208: 12662 | E208: 10982 | F208: 7675 | G208: 4844 | H208: 2940
A209: 63 | D209: 13864 | E209: 12007 | F209: 8423 | G209: 5290 | H209: 3082
A210: 64 | D210: 15506 | E210: 13430 | F210: 9450 | G210: 5913 | H210: 3286
A211: 65 | D211: 17624 | E211: 15254 | F211: 10766 | G211: 6707 | H211: 3598
A212: 66 | D212: 20214 | E212: 17551 | F212: 12363 | G212: 7641 | H212: 3978
A213: 67 | D213: 23133 | E213: 20138 | F213: 14212 | G213: 8713 | H213: 4496
A214: 68 | D214: 26268 | E214: 22949 | F214: 16165 | G214: 9889 | H214: 5050
A215: 69 | D215: 29552 | E215: 25906 | F215: 18224 | G215: 11130 | H215: 5673
A216: 70 | D216: 32945 | E216: 28928 | F216: 20424 | G216: 12516 | H216: 6329
A217: 71 | D217: 36447 | E217: 32102 | F217: 22734 | G217: 13964 | H217: 7020
A218: 72 | D218: 40054 | E218: 35314 | F218: 25149 | G218: 15516 | H218: 7745
A219: 73 | D219: 43740 | E219: 38633 | F219: 27708 | G219: 17178 | H219: 8506
A220: 74 | D220: 47460 | E220: 42028 | F220: 30370 | G220: 18942 | H220: 9265
A221: 75 | D221: 51289 | E221: 45454 | F221: 33140 | G221: 20808 | H221: 10060
A222: 76 | D222: 55158 | E222: 48954 | F222: 36019 | G222: 22778 | H222: 10889
A223: 77 | D223: 59095 | E223: 52492 | F223: 39000 | G223: 24850 | H223: 11751
... 81 more rows
